Workbook

Sheet PO Attainment
C2: Dr.T.Thimmaiah Institute of Technology Oorgaum, K.G.F-563120
BF3: CO1 | BG3: √
BF4: CO2 | BG4: X
B5: SEM | C5: IV | K5: Course Instructor | S5: SHASHIKIRAN S | BF5: CO3
B6: Department | C6: Electronics & Communication | K6: Designation | S6: Assistant Professor
B7: Course | C7: SIGNALS AND SYSTEMS | K7: Course code | S7: 18EC45 | BF7: CO4
B8: Academic Year | C8: 2020-21 | K8: Total Students | S8: 60 | AZ8: Principal | BF8: CO5
AZ9: Vice Principal | BF9: CO6
B10: CO'S | C10: Description | AZ10: Dean | BC10: Mechanical
B11: CO1 | C11: Sketch and analyze different types of signals and systems | AZ11: Professor | BC11: Mining
B12: CO2 | C12: Obtain the output for LTI systems using time domain and frequency domain representation | AZ12: Associate Professor | BC12: Civil | BE12: `
B13: CO3 | C13: Analyze the performance of LTI system interms of impulse response | AZ13: Assistant Professor | BC13: Electrical & Electronics
B14: CO4 | C14: Analyze the performance of LTI system in frequency domain and the time domain using various transform | BC14: Computer Science
B15: CO5 | BC15: Electronics & Communication
B16: CO6 | AH16: Reduction factors to be used | BC16: Basic Science
B18: Grading Scale | D18: Level | I18: CO's | K18: T1 | M18: T2 | O18: T3 | Q18: A | S18: T | U18: Q | W18: Total Marks | Y18: External Marks | AH18: Internals | AI18: T/A/Q
B19: Score < 40 | D19: 0 | I19: CO1 | K19: 50 | Q19: 10 | W19: =(K19+M19+O19)*$AH$19+(Q19+S19+U19)*$AI$19 -> 50 | Y19: 50 | AH19: 0.8 | AI19: 1
B20: ="Score 40 to < " &D24-(D24-40)/2 -> Score 40 to < 45 | D20: 1 | I20: CO2 | M20: 50 | Q20: 10 | W20: =(K20+M20+O20)*$AH$19+(Q20+S20+U20)*$AI$19 -> 50
B21: ="Score "&D24-(D24-40)/2 &" to < "&D24 -> Score 45 to < 50 | D21: 2 | I21: CO3 | O21: 20 | W21: 16
B22: ="Score > "&D24 -> Score > 50 | D22: 3 | I22: CO4 | O22: 30 | Q22: 10 | W22: 34
I23: CO5 | W23: 0
B24: Target Percentage | D24: 50 | I24: CO6 | W24: 0
A26: Sl No | B26: USN | C26: Students Name | E26: CO Marks in Tests | R26: Attainment of CO's | AE26: VTU
E27: Test 1 | H27: A | I27: Test 2 | L27: A | M27: Test 3 | P27: A | R27: CO1 | T27: CO2 | V27: CO3 | X27: CO4 | Z27: CO5 | AB27: CO6 | AE27: All CO
E28: CO1 | F28: CO1 | G28: CO1 | H28: CO1 | I28: CO2 | J28: CO2 | K28: CO2 | L28: CO2 | M28: CO4 | N28: CO3 | O28: CO4 | P28: CO4 | R28: M | S28: % | T28: M | U28: % | V28: M | W28: % | X28: M | Y28: % | Z28: M | AA28: % | AB28: M | AC28: % | AE28: M | AF28: %
A29: 1 | B29: 1GV19EC002 | C29: AKSHAYA K A | E29: 16 | F29: 17 | G29: 10 | H29: 10 | I29: 16 | J29: 18 | K29: 8 | L29: 10 | M29: 16 | N29: 9 | O29: 9 | P29: 10 | R29: =SUM(0,IF($E$28="CO1",E29*$AH$19),IF($F$28="CO1",F29*$AH$19),IF($G$28="CO1",G29*$AH$19),IF($H$28="CO1",H29*$AI$19),IF($I$28="CO1",I29*$AH$19),IF($J$28="CO1",J29*$AH$19),IF($K$28="CO1",K29*$AH$19),IF($L$28="CO1",L29*$AI$19),IF($M$28="CO1",M29*$AH$19),IF($N$28="CO1",N29*$AH$19),IF($O$28="CO1",O29*$AH$19),IF($P$28="CO1",P29*$AI$19)) -> 44.4 | S29: =R29*100/$W$19 -> 88.8 | T29: =SUM(0,IF($E$28="CO2",E29*$AH$19),IF($F$28="CO2",F29*$AH$19),IF($G$28="CO2",G29*$AH$19),IF($H$28="CO2",H29*$AI$19),IF($I$28="CO2",I29*$AH$19),IF($J$28="CO2",J29*$AH$19),IF($K$28="CO2",K29*$AH$19),IF($L$28="CO2",L29*$AI$19),IF($M$28="CO2",M29*$AH$19),IF($N$28="CO2",N29*$AH$19),IF($O$28="CO2",O29*$AH$19),IF($P$28="CO2",P29*$AI$19)) -> 43.6 | U29: =T29*100/$W$20 -> 87.2 | V29: =SUM(0,IF($E$28="CO3",E29*$AH$19),IF($F$28="CO3",F29*$AH$19),IF($G$28="CO3",G29*$AH$19),IF($H$28="CO3",H29*$AI$19),IF($I$28="CO3",I29*$AH$19),IF($J$28="CO3",J29*$AH$19),IF($K$28="CO3",K29*$AH$19),IF($L$28="CO3",L29*$AI$19),IF($M$28="CO3",M29*$AH$19),IF($N$28="CO3",N29*$AH$19),IF($O$28="CO3",O29*$AH$19),IF($P$28="CO3",P29*$AI$19)) -> 7.2 | W29: =V29*100/$W$21 -> 45 | X29: =SUM(0,IF($E$28="CO4",E29*$AH$19),IF($F$28="CO4",F29*$AH$19),IF($G$28="CO4",G29*$AH$19),IF($H$28="CO4",H29*$AI$19),IF($I$28="CO4",I29*$AH$19),IF($J$28="CO4",J29*$AH$19),IF($K$28="CO4",K29*$AH$19),IF($L$28="CO4",L29*$AI$19),IF($M$28="CO4",M29*$AH$19),IF($N$28="CO4",N29*$AH$19),IF($O$28="CO4",O29*$AH$19),IF($P$28="CO4",P29*$AI$19)) -> 30 | Y29: =X29*100/$W$22 -> 88.23529412 | Z29: =SUM(0,IF($E$28="CO5",E29*$AH$19),IF($F$28="CO5",F29*$AH$19),IF($G$28="CO5",G29*$AH$19),IF($H$28="CO5",H29*$AI$19),IF($I$28="CO5",I29*$AH$19),IF($J$28="CO5",J29*$AH$19),IF($K$28="CO5",K29*$AH$19),IF($L$28="CO5",L29*$AI$19),IF($M$28="CO5",M29*$AH$19),IF($N$28="CO5",N29*$AH$19),IF($O$28="CO5",O29*$AH$19),IF($P$28="CO5",P29*$AI$19)) -> 0 | AA29: =Z29*100/$W$23 ->  | AB29: =SUM(0,IF($E$28="CO6",E29*$AH$19),IF($F$28="CO6",F29*$AH$19),IF($G$28="CO6",G29*$AH$19),IF($H$28="CO6",H29*$AI$19),IF($I$28="CO6",I29*$AH$19),IF($J$28="CO6",J29*$AH$19),IF($K$28="CO6",K29*$AH$19),IF($L$28="CO6",L29*$AI$19),IF($M$28="CO6",M29*$AH$19),IF($N$28="CO6",N29*$AH$19),IF($O$28="CO6",O29*$AH$19),IF($P$28="CO6",P29*$AI$19)) -> 0 | AC29: =AB29*100/$W$24 ->  | AE29: 30 | AF29: =AE29*100/$Y$19 -> 60
A30: 2 | B30: 1GV19EC003 | C30: AVINASH BABU B | E30: 12 | F30: 16 | G30: 8 | H30: 10 | I30: 16 | J30: 13 | K30: 6 | L30: 10 | M30: 8 | P30: 10 | R30: =SUM(0,IF($E$28="CO1",E30*$AH$19),IF($F$28="CO1",F30*$AH$19),IF($G$28="CO1",G30*$AH$19),IF($H$28="CO1",H30*$AI$19),IF($I$28="CO1",I30*$AH$19),IF($J$28="CO1",J30*$AH$19),IF($K$28="CO1",K30*$AH$19),IF($L$28="CO1",L30*$AI$19),IF($M$28="CO1",M30*$AH$19),IF($N$28="CO1",N30*$AH$19),IF($O$28="CO1",O30*$AH$19),IF($P$28="CO1",P30*$AI$19)) -> 38.8 | S30: =R30*100/$W$19 -> 77.6 | T30: =SUM(0,IF($E$28="CO2",E30*$AH$19),IF($F$28="CO2",F30*$AH$19),IF($G$28="CO2",G30*$AH$19),IF($H$28="CO2",H30*$AI$19),IF($I$28="CO2",I30*$AH$19),IF($J$28="CO2",J30*$AH$19),IF($K$28="CO2",K30*$AH$19),IF($L$28="CO2",L30*$AI$19),IF($M$28="CO2",M30*$AH$19),IF($N$28="CO2",N30*$AH$19),IF($O$28="CO2",O30*$AH$19),IF($P$28="CO2",P30*$AI$19)) -> 38 | U30: =T30*100/$W$20 -> 76 | V30: =SUM(0,IF($E$28="CO3",E30*$AH$19),IF($F$28="CO3",F30*$AH$19),IF($G$28="CO3",G30*$AH$19),IF($H$28="CO3",H30*$AI$19),IF($I$28="CO3",I30*$AH$19),IF($J$28="CO3",J30*$AH$19),IF($K$28="CO3",K30*$AH$19),IF($L$28="CO3",L30*$AI$19),IF($M$28="CO3",M30*$AH$19),IF($N$28="CO3",N30*$AH$19),IF($O$28="CO3",O30*$AH$19),IF($P$28="CO3",P30*$AI$19)) -> 0 | W30: =V30*100/$W$21 -> 0 | X30: =SUM(0,IF($E$28="CO4",E30*$AH$19),IF($F$28="CO4",F30*$AH$19),IF($G$28="CO4",G30*$AH$19),IF($H$28="CO4",H30*$AI$19),IF($I$28="CO4",I30*$AH$19),IF($J$28="CO4",J30*$AH$19),IF($K$28="CO4",K30*$AH$19),IF($L$28="CO4",L30*$AI$19),IF($M$28="CO4",M30*$AH$19),IF($N$28="CO4",N30*$AH$19),IF($O$28="CO4",O30*$AH$19),IF($P$28="CO4",P30*$AI$19)) -> 16.4 | Y30: =X30*100/$W$22 -> 48.23529412 | Z30: =SUM(0,IF($E$28="CO5",E30*$AH$19),IF($F$28="CO5",F30*$AH$19),IF($G$28="CO5",G30*$AH$19),IF($H$28="CO5",H30*$AI$19),IF($I$28="CO5",I30*$AH$19),IF($J$28="CO5",J30*$AH$19),IF($K$28="CO5",K30*$AH$19),IF($L$28="CO5",L30*$AI$19),IF($M$28="CO5",M30*$AH$19),IF($N$28="CO5",N30*$AH$19),IF($O$28="CO5",O30*$AH$19),IF($P$28="CO5",P30*$AI$19)) -> 0 | AA30: =Z30*100/$W$23 ->  | AB30: =SUM(0,IF($E$28="CO6",E30*$AH$19),IF($F$28="CO6",F30*$AH$19),IF($G$28="CO6",G30*$AH$19),IF($H$28="CO6",H30*$AI$19),IF($I$28="CO6",I30*$AH$19),IF($J$28="CO6",J30*$AH$19),IF($K$28="CO6",K30*$AH$19),IF($L$28="CO6",L30*$AI$19),IF($M$28="CO6",M30*$AH$19),IF($N$28="CO6",N30*$AH$19),IF($O$28="CO6",O30*$AH$19),IF($P$28="CO6",P30*$AI$19)) -> 0 | AC30: =AB30*100/$W$24 ->  | AE30: 10 | AF30: =AE30*100/$Y$19 -> 20
A31: 3 | B31: 1GV19EC005 | C31: BHARATH KUMAR R | E31: 14 | F31: 8 | G31: 8 | H31: 10 | I31: 12 | J31: 12 | K31: 4 | L31: 10 | M31: 6 | P31: 10 | R31: 34 | S31: 68 | T31: 32.4 | U31: 64.8 | V31: 0 | W31: 0 | X31: 14.8 | Y31: 43.52941176 | Z31: 0 | AB31: 0 | AE31: 14 | AF31: 28
A32: 4 | B32: 1GV19EC006 | C32: BHARGAVI S | E32: 15 | F32: 19 | G32: 10 | H32: 10 | I32: 18 | J32: 18 | K32: 8 | L32: 10 | M32: 19 | N32: 18 | O32: 8 | P32: 10 | R32: 45.2 | S32: 90.4 | T32: 45.2 | U32: 90.4 | V32: 14.4 | W32: 90 | X32: 31.6 | Y32: 92.94117647 | Z32: 0 | AB32: 0 | AE32: 31 | AF32: 62
A33: 5 | B33: 1GV19EC007 | C33: CHAITHANYA K K V | E33: 11 | F33: 15 | G33: 10 | H33: 10 | I33: 16 | J33: 18 | K33: 8 | L33: 10 | M33: 7 | N33: 4 | O33: 1 | P33: 10 | R33: 38.8 | S33: 77.6 | T33: 43.6 | U33: 87.2 | V33: 3.2 | W33: 20 | X33: 16.4 | Y33: 48.23529412 | Z33: 0 | AB33: 0 | AE33: 21 | AF33: 42
A34: 6 | B34: 1GV19EC008 | C34: DEEPAK R | E34: 12 | F34: 12 | H34: 10 | I34: 16 | J34: 13 | K34: 6 | L34: 10 | M34: 7 | N34: 14 | O34: 4 | P34: 10 | R34: 29.2 | S34: 58.4 | T34: 38 | U34: 76 | V34: 11.2 | W34: 70 | X34: 18.8 | Y34: 55.29411765 | Z34: 0 | AB34: 0 | AE34: 21 | AF34: 42
A35: 7 | B35: 1GV19EC009 | C35: DIVYA PRIYA G R | E35: 16 | F35: 15 | G35: 9 | H35: 10 | I35: 20 | J35: 18 | K35: 9 | L35: 10 | M35: 19 | N35: 17 | O35: 8 | P35: 10 | R35: 42 | S35: 84 | T35: 47.6 | U35: 95.2 | V35: 13.6 | W35: 85 | X35: 31.6 | Y35: 92.94117647 | Z35: 0 | AB35: 0 | AE35: 31 | AF35: 62
A36: 8 | B36: 1GV19EC010 | C36: DIVYA SWETHA J | E36: 17 | F36: 18 | G36: 10 | H36: 10 | I36: 20 | J36: 18 | K36: 9 | L36: 10 | M36: 19 | N36: 17 | O36: 8 | P36: 10 | R36: 46 | S36: 92 | T36: 47.6 | U36: 95.2 | V36: 13.6 | W36: 85 | X36: 31.6 | Y36: 92.94117647 | Z36: 0 | AB36: 0 | AE36: 33 | AF36: 66
A37: 9 | B37: 1GV19EC011 | C37: EVANGELIN P | E37: 9 | F37: 12 | G37: 8 | H37: 10 | I37: 16 | J37: 13 | K37: 6 | L37: 10 | M37: 12 | N37: 9 | O37: 4 | P37: 10 | R37: 33.2 | S37: 66.4 | T37: 38 | U37: 76 | V37: 7.2 | W37: 45 | X37: 22.8 | Y37: 67.05882353 | Z37: 0 | AB37: 0 | AE37: 17 | AF37: 34
A38: 10 | B38: 1GV19EC012 | C38: FARHEEN TAJ | E38: 16 | F38: 15 | G38: 9 | H38: 10 | I38: 16 | J38: 18 | K38: 8 | L38: 10 | M38: 19 | N38: 17 | O38: 9 | P38: 10 | R38: 42 | S38: 84 | T38: 43.6 | U38: 87.2 | V38: 13.6 | W38: 85 | X38: 32.4 | Y38: 95.29411765 | Z38: 0 | AB38: 0 | AE38: 31 | AF38: 62
A39: 11 | B39: 1GV19EC014 | C39: HARISHAKTHI N | E39: 14 | F39: 14 | G39: 8 | H39: 10 | I39: 16 | J39: 13 | K39: 6 | L39: 10 | M39: 7 | N39: 11 | O39: 5 | P39: 10 | R39: 38.8 | S39: 77.6 | T39: 38 | U39: 76 | V39: 8.8 | W39: 55 | X39: 19.6 | Y39: 57.64705882 | Z39: 0 | AB39: 0 | AE39: 14 | AF39: 28
A40: 12 | B40: 1GV19EC015 | C40: JAISHNAVI U | E40: 14 | F40: 12 | G40: 8 | H40: 10 | I40: 16 | J40: 13 | K40: 6 | L40: 10 | M40: 13 | N40: 13 | O40: 6 | P40: 10 | R40: 37.2 | S40: 74.4 | T40: 38 | U40: 76 | V40: 10.4 | W40: 65 | X40: 25.2 | Y40: 74.11764706 | Z40: 0 | AB40: 0 | AE40: 22 | AF40: 44
A41: 13 | B41: 1GV19EC017 | C41: KANISHA R | E41: 14 | F41: 14 | G41: 8 | H41: 10 | I41: 16 | J41: 16 | K41: 8 | L41: 10 | M41: 19 | N41: 18 | O41: 6 | P41: 10 | R41: 38.8 | S41: 77.6 | T41: 42 | U41: 84 | V41: 14.4 | W41: 90 | X41: 30 | Y41: 88.23529412 | Z41: 0 | AB41: 0 | AE41: 28 | AF41: 56
A42: 14 | B42: 1GV19EC018 | C42: KAVYA RAJ | E42: 14 | F42: 14 | G42: 8 | H42: 10 | I42: 16 | J42: 16 | K42: 8 | L42: 10 | M42: 19 | N42: 12 | O42: 3 | P42: 10 | R42: 38.8 | S42: 77.6 | T42: 42 | U42: 84 | V42: 9.6 | W42: 60 | X42: 27.6 | Y42: 81.17647059 | Z42: 0 | AB42: 0 | AE42: 21 | AF42: 42
A43: 15 | B43: 1GV19EC019 | C43: KEERTHANA B S | E43: 12 | F43: 12 | G43: 8 | H43: 10 | I43: 16 | J43: 16 | K43: 8 | L43: 10 | M43: 13 | N43: 11 | O43: 8 | P43: 10 | R43: 35.6 | S43: 71.2 | T43: 42 | U43: 84 | V43: 8.8 | W43: 55 | X43: 26.8 | Y43: 78.82352941 | Z43: 0 | AB43: 0 | AE43: 19 | AF43: 38
A44: 16 | B44: 1GV19EC020 | C44: KRITHIKA A | E44: 6 | F44: 14 | G44: 8 | H44: 10 | I44: 16 | J44: 14 | K44: 0 | L44: 10 | M44: 5 | N44: 11 | P44: 10 | R44: 32.4 | S44: 64.8 | T44: 34 | U44: 68 | V44: 8.8 | W44: 55 | X44: 14 | Y44: 41.17647059 | Z44: 0 | AB44: 0 | AE44: 13 | AF44: 26
A45: 17 | B45: 1GV19EC021 | C45: LEEKATH UNNISSA A | E45: 14 | F45: 16 | G45: 10 | H45: 10 | I45: 18 | J45: 18 | K45: 8 | L45: 10 | M45: 19 | N45: 19 | O45: 10 | P45: 10 | R45: 42 | S45: 84 | T45: 45.2 | U45: 90.4 | V45: 15.2 | W45: 95 | X45: 33.2 | Y45: 97.64705882 | Z45: 0 | AB45: 0 | AE45: 28 | AF45: 56
A46: 18 | B46: 1GV19EC022 | C46: MAHALAKSHMI S | E46: 15 | F46: 12 | G46: 9 | H46: 10 | I46: 18 | J46: 20 | K46: 9 | L46: 10 | M46: 19 | N46: 19 | O46: 6 | P46: 10 | R46: 38.8 | S46: 77.6 | T46: 47.6 | U46: 95.2 | V46: 15.2 | W46: 95 | X46: 30 | Y46: 88.23529412 | Z46: 0 | AB46: 0 | AE46: 37 | AF46: 74
A47: 19 | B47: 1GV19EC023 | C47: MARY VINISHA B | E47: 12 | F47: 16 | G47: 9 | H47: 10 | I47: 16 | J47: 18 | K47: 8 | L47: 10 | M47: 19 | N47: 18 | O47: 8 | P47: 10 | R47: 39.6 | S47: 79.2 | T47: 43.6 | U47: 87.2 | V47: 14.4 | W47: 90 | X47: 31.6 | Y47: 92.94117647 | Z47: 0 | AB47: 0 | AE47: 27 | AF47: 54
A48: 20 | B48: 1GV19EC024 | C48: MOHAMMED IRFAN | E48: 16 | F48: 16 | G48: 10 | H48: 10 | I48: 18 | J48: 16 | K48: 8 | L48: 10 | M48: 15 | N48: 15 | O48: 4 | P48: 10 | R48: 43.6 | S48: 87.2 | T48: 43.6 | U48: 87.2 | V48: 12 | W48: 75 | X48: 25.2 | Y48: 74.11764706 | Z48: 0 | AB48: 0 | AE48: 19 | AF48: 38
A49: 21 | B49: 1GV19EC026 | C49: MOHAN C R | E49: 16 | F49: 15 | G49: 8 | H49: 10 | I49: 16 | J49: 16 | K49: 8 | L49: 10 | M49: 0 | P49: 10 | R49: 41.2 | S49: 82.4 | T49: 42 | U49: 84 | V49: 0 | W49: 0 | X49: 10 | Y49: 29.41176471 | Z49: 0 | AB49: 0 | AE49: 23 | AF49: 46
A50: 22 | B50: 1GV19EC027 | C50: MOUNIKA V | E50: 7 | F50: 13 | G50: 7 | H50: 10 | I50: 16 | J50: 18 | K50: 8 | L50: 10 | M50: 18 | N50: 16 | O50: 6 | P50: 10 | R50: 31.6 | S50: 63.2 | T50: 43.6 | U50: 87.2 | V50: 12.8 | W50: 80 | X50: 29.2 | Y50: 85.88235294 | Z50: 0 | AB50: 0 | AE50: 20 | AF50: 40
A51: 23 | B51: 1GV19EC028 | C51: MOUNISHA N N | E51: 14 | F51: 16 | G51: 9 | H51: 10 | I51: 18 | J51: 16 | K51: 8 | L51: 10 | M51: 16 | N51: 17 | O51: 8 | P51: 10 | R51: 41.2 | S51: 82.4 | T51: 43.6 | U51: 87.2 | V51: 13.6 | W51: 85 | X51: 29.2 | Y51: 85.88235294 | Z51: 0 | AB51: 0 | AE51: 30 | AF51: 60
A52: 24 | B52: 1GV19EC029 | C52: NOMESHWAR V | E52: 16 | F52: 12 | G52: 8 | H52: 10 | I52: 16 | J52: 16 | K52: 8 | L52: 10 | M52: 20 | N52: 19 | O52: 9 | P52: 10 | R52: 38.8 | S52: 77.6 | T52: 42 | U52: 84 | V52: 15.2 | W52: 95 | X52: 33.2 | Y52: 97.64705882 | Z52: 0 | AB52: 0 | AE52: 31 | AF52: 62
A53: 25 | B53: 1GV19EC030 | C53: POOJA G V | E53: 12 | F53: 10 | G53: 8 | H53: 10 | I53: 16 | J53: 16 | K53: 8 | L53: 10 | M53: 15 | N53: 12 | O53: 4 | P53: 10 | R53: 34 | S53: 68 | T53: 42 | U53: 84 | V53: 9.6 | W53: 60 | X53: 25.2 | Y53: 74.11764706 | Z53: 0 | AB53: 0 | AE53: 22 | AF53: 44
A54: 26 | B54: 1GV19EC033 | C54: RISHIKA R | H54: 10 | L54: 10 | M54: 1 | N54: 9 | O54: 9 | P54: 10 | R54: 10 | S54: 20 | T54: 10 | U54: 20 | V54: 7.2 | W54: 45 | X54: 18 | Y54: 52.94117647 | Z54: 0 | AB54: 0 | AE54: 10 | AF54: 20
A55: 27 | B55: 1GV19EC034 | C55: SAFNA FIRDOUS E K | E55: 12 | F55: 10 | G55: 8 | H55: 10 | I55: 16 | J55: 18 | K55: 8 | L55: 10 | M55: 14 | N55: 10 | O55: 8 | P55: 10 | R55: 34 | S55: 68 | T55: 43.6 | U55: 87.2 | V55: 8 | W55: 50 | X55: 27.6 | Y55: 81.17647059 | Z55: 0 | AB55: 0 | AE55: 23 | AF55: 46
A56: 28 | B56: 1GV19EC035 | C56: SAHANA K | E56: 8 | F56: 8 | G56: 10 | H56: 10 | I56: 20 | J56: 20 | K56: 4 | L56: 10 | M56: 0 | P56: 10 | R56: 30.8 | S56: 61.6 | T56: 45.2 | U56: 90.4 | V56: 0 | W56: 0 | X56: 10 | Y56: 29.41176471 | Z56: 0 | AB56: 0 | AE56: 25 | AF56: 50
A57: 29 | B57: 1GV19EC036 | C57: SAIMANIMALA S | E57: 12 | F57: 10 | G57: 8 | H57: 10 | I57: 18 | J57: 18 | K57: 8 | L57: 10 | M57: 18 | N57: 16 | O57: 9 | P57: 10 | R57: 34 | S57: 68 | T57: 45.2 | U57: 90.4 | V57: 12.8 | W57: 80 | X57: 31.6 | Y57: 92.94117647 | Z57: 0 | AB57: 0 | AE57: 28 | AF57: 56
A58: 30 | B58: 1GV19EC037 | C58: SAKTHI RAGAVAN | E58: 15 | F58: 13 | G58: 9 | H58: 10 | I58: 18 | J58: 18 | K58: 8 | L58: 10 | M58: 18 | N58: 14 | O58: 8 | P58: 10 | R58: 39.6 | S58: 79.2 | T58: 45.2 | U58: 90.4 | V58: 11.2 | W58: 70 | X58: 30.8 | Y58: 90.58823529 | Z58: 0 | AB58: 0 | AE58: 33 | AF58: 66
A59: 31 | B59: 1GV19EC039 | C59: SHARMILA A | E59: 13 | F59: 14 | G59: 8 | H59: 10 | I59: 16 | J59: 16 | K59: 8 | L59: 10 | M59: 18 | N59: 17 | O59: 7 | P59: 10 | R59: 38 | S59: 76 | T59: 42 | U59: 84 | V59: 13.6 | W59: 85 | X59: 30 | Y59: 88.23529412 | Z59: 0 | AB59: 0 | AE59: 26 | AF59: 52
A60: 32 | B60: 1GV19EC040 | C60: SHYAM KUMAR P | E60: 8 | F60: 6 | G60: 8 | H60: 10 | I60: 12 | J60: 12 | K60: 6 | L60: 10 | M60: 8 | N60: 12 | O60: 1 | P60: 10 | R60: 27.6 | S60: 55.2 | T60: 34 | U60: 68 | V60: 9.6 | W60: 60 | X60: 17.2 | Y60: 50.58823529 | Z60: 0 | AB60: 0 | AE60: 13 | AF60: 26
A61: 33 | B61: 1GV19EC041 | C61: SNEHA N | E61: 13 | F61: 15 | G61: 9 | H61: 10 | I61: 16 | J61: 16 | K61: 8 | L61: 10 | M61: =SUM(I61:L61) -> 10 | P61: 10 | R61: 39.6 | S61: 79.2 | T61: 42 | U61: 84 | V61: 0 | W61: 0 | X61: 18 | Y61: 52.94117647 | Z61: 0 | AB61: 0 | AE61: 28 | AF61: 56
A62: 34 | B62: 1GV19EC042 | C62: SNEHA S | E62: 4 | F62: 15 | G62: 9 | H62: 10 | I62: 16 | J62: 18 | K62: 8 | L62: 10 | M62: 6 | N62: 7 | O62: 2 | P62: 10 | R62: 32.4 | S62: 64.8 | T62: 43.6 | U62: 87.2 | V62: 5.6 | W62: 35 | X62: 16.4 | Y62: 48.23529412 | Z62: 0 | AB62: 0 | AE62: 21 | AF62: 42
A63: 35 | B63: 1GV19EC043 | C63: SOUJANYA D | E63: 11 | F63: 12 | G63: 10 | H63: 10 | I63: 20 | J63: 18 | K63: 8 | L63: 10 | M63: 18 | N63: 17 | O63: 8 | P63: 10 | R63: 36.4 | S63: 72.8 | T63: 46.8 | U63: 93.6 | V63: 13.6 | W63: 85 | X63: 30.8 | Y63: 90.58823529 | Z63: 0 | AB63: 0 | AE63: 30 | AF63: 60
A64: 36 | B64: 1GV19EC044 | C64: SOWMIYA J | E64: 15 | F64: 12 | G64: 9 | H64: 10 | I64: 20 | J64: 18 | K64: 8 | L64: 10 | M64: 19 | N64: 19 | O64: 9 | P64: 10 | R64: 38.8 | S64: 77.6 | T64: 46.8 | U64: 93.6 | V64: 15.2 | W64: 95 | X64: 32.4 | Y64: 95.29411765 | Z64: 0 | AB64: 0 | AE64: 32 | AF64: 64
A65: 37 | B65: 1GV19EC045 | C65: SUJITHA S | E65: 14 | F65: 18 | G65: 10 | H65: 10 | I65: 20 | J65: 18 | K65: 9 | L65: 10 | M65: 18 | N65: 17 | O65: 9 | P65: 10 | R65: 43.6 | S65: 87.2 | T65: 47.6 | U65: 95.2 | V65: 13.6 | W65: 85 | X65: 31.6 | Y65: 92.94117647 | Z65: 0 | AB65: 0 | AE65: 32 | AF65: 64
A66: 38 | B66: 1GV19EC046 | C66: SUMITH R | E66: 11 | F66: 12 | G66: 9 | H66: 10 | I66: 16 | J66: 18 | K66: 8 | L66: 10 | M66: 13 | N66: 7 | O66: 3 | P66: 10 | R66: 35.6 | S66: 71.2 | T66: 43.6 | U66: 87.2 | V66: 5.6 | W66: 35 | X66: 22.8 | Y66: 67.05882353 | Z66: 0 | AB66: 0 | AE66: 25 | AF66: 50
A67: 39 | B67: 1GV19EC047 | C67: SURYA H G | E67: 7 | F67: 8 | G67: 6 | H67: 10 | I67: 10 | J67: 10 | K67: 3 | L67: 10 | M67: 10 | N67: 5 | O67: 0 | P67: 10 | R67: 26.8 | S67: 53.6 | T67: 28.4 | U67: 56.8 | V67: 4 | W67: 25 | X67: 18 | Y67: 52.94117647 | Z67: 0 | AB67: 0 | AE67: 11 | AF67: 22
A68: 40 | B68: 1GV19EC048 | C68: SWETHA T | E68: 13 | F68: 15 | G68: 8 | H68: 10 | I68: 16 | J68: 16 | K68: 8 | L68: 10 | M68: 13 | N68: 5 | O68: 2 | P68: 10 | R68: 38.8 | S68: 77.6 | T68: 42 | U68: 84 | V68: 4 | W68: 25 | X68: 22 | Y68: 64.70588235 | Z68: 0 | AB68: 0 | AE68: 17 | AF68: 34
A69: 41 | B69: 1GV19EC049 | C69: SYED ASHWAQ AHMED M | E69: 14 | F69: 15 | G69: 8 | H69: 10 | I69: 16 | J69: 16 | K69: 8 | L69: 10 | M69: 17 | N69: 10 | O69: 6 | P69: 10 | R69: 39.6 | S69: 79.2 | T69: 42 | U69: 84 | V69: 8 | W69: 50 | X69: 28.4 | Y69: 83.52941176 | Z69: 0 | AB69: 0 | AE69: 24 | AF69: 48
A70: 42 | B70: 1GV19EC050 | C70: TRIBHUVAN S R | E70: 7 | F70: 10 | G70: 6 | H70: 10 | I70: 16 | J70: 16 | K70: 8 | L70: 10 | M70: 12 | N70: 8 | O70: 2 | P70: 10 | R70: 28.4 | S70: 56.8 | T70: 42 | U70: 84 | V70: 6.4 | W70: 40 | X70: 21.2 | Y70: 62.35294118 | Z70: 0 | AB70: 0 | AE70: 20 | AF70: 40
A71: 43 | B71: 1GV19EC051 | C71: VANDANA K | E71: 11 | F71: 15 | G71: 9 | H71: 10 | I71: 18 | J71: 16 | K71: 8 | L71: 10 | M71: 11 | N71: 7 | O71: 3 | P71: 10 | R71: 38 | S71: 76 | T71: 43.6 | U71: 87.2 | V71: 5.6 | W71: 35 | X71: 21.2 | Y71: 62.35294118 | Z71: 0 | AB71: 0 | AE71: 17 | AF71: 34
A72: 44 | B72: 1GV19EC052 | C72: VARADARAJU D | E72: 11 | F72: 10 | G72: 8 | H72: 10 | I72: 16 | J72: 13 | K72: 6 | L72: 10 | M72: 18 | N72: 10 | P72: 10 | R72: 33.2 | S72: 66.4 | T72: 38 | U72: 76 | V72: 8 | W72: 50 | X72: 24.4 | Y72: 71.76470588 | Z72: 0 | AB72: 0 | AE72: 26 | AF72: 52
A73: 45 | B73: 1GV19EC053 | C73: VIDHYA G N | E73: 13 | F73: 12 | G73: 8 | H73: 10 | I73: 16 | J73: 18 | K73: 8 | L73: 10 | M73: 14 | N73: 15 | O73: 8 | P73: 10 | R73: 36.4 | S73: 72.8 | T73: 43.6 | U73: 87.2 | V73: 12 | W73: 75 | X73: 27.6 | Y73: 81.17647059 | Z73: 0 | AB73: 0 | AE73: 24 | AF73: 48
A74: 46 | B74: 1GV19EC054 | C74: VIDYA M | E74: 10 | F74: 12 | G74: 8 | H74: 10 | I74: 16 | J74: 16 | K74: 8 | L74: 10 | M74: 10 | P74: 10 | R74: 34 | S74: 68 | T74: 42 | U74: 84 | V74: 0 | W74: 0 | X74: 18 | Y74: 52.94117647 | Z74: 0 | AB74: 0 | AE74: 20 | AF74: 40
A75: 47 | B75: 1GV19EC057 | C75: GRITA A | E75: 17 | F75: 19 | G75: 10 | H75: 10 | I75: 20 | J75: 18 | K75: 9 | L75: 10 | M75: 20 | N75: 19 | O75: 10 | P75: 10 | R75: 46.8 | S75: 93.6 | T75: 47.6 | U75: 95.2 | V75: 15.2 | W75: 95 | X75: 34 | Y75: 100 | Z75: 0 | AB75: 0 | AE75: 38 | AF75: 76
A76: 48 | B76: 1GV19EC058 | C76: TABREZ AHMED N | E76: 16 | F76: 14 | G76: 9 | H76: 10 | I76: 8 | J76: 4 | K76: 3 | L76: 10 | M76: 13 | N76: 11 | O76: 8 | P76: 10 | R76: 41.2 | S76: 82.4 | T76: 22 | U76: 44 | V76: 8.8 | W76: 55 | X76: 26.8 | Y76: 78.82352941 | Z76: 0 | AB76: 0 | AE76: 25 | AF76: 50
A77: 49 | B77: 1GV18EC012 | C77: KENNETH BENNY J | E77: 13 | G77: 8 | H77: 10 | I77: 16 | J77: 16 | K77: 8 | L77: 10 | M77: 1 | N77: 6 | O77: 7 | P77: 10 | R77: 26.8 | S77: 53.6 | T77: 42 | U77: 84 | V77: 4.8 | W77: 30 | X77: 16.4 | Y77: 48.23529412 | Z77: 0 | AB77: 0 | AE77: 26 | AF77: 52
A78: 50 | B78: 1GV18EC013 | C78: KEZIA R | E78: 13 | F78: 14 | G78: 8 | H78: 10 | I78: 18 | J78: 16 | K78: 8 | L78: 10 | M78: 8 | N78: 4 | O78: 7 | P78: 10 | R78: 38 | S78: 76 | T78: 43.6 | U78: 87.2 | V78: 3.2 | W78: 20 | X78: 22 | Y78: 64.70588235 | Z78: 0 | AB78: 0 | AE78: 26 | AF78: 52
A79: 51 | B79: 1GV18EC022 | C79: PAVITHRA. P | E79: 15 | F79: 18 | G79: 10 | H79: 10 | I79: 16 | K79: 8 | L79: 10 | M79: 19 | N79: 16 | O79: 7 | P79: 10 | R79: 44.4 | S79: 88.8 | T79: 29.2 | U79: 58.4 | V79: 12.8 | W79: 80 | X79: 30.8 | Y79: 90.58823529 | Z79: 0 | AB79: 0 | AE79: 32 | AF79: 64
A80: 52 | B80: 1GV18EC033 | C80: SHREEJA R | E80: 15 | F80: 14 | G80: 9 | H80: 10 | I80: 18 | J80: 16 | K80: 8 | L80: 10 | M80: 14 | N80: 2 | P80: 10 | R80: 40.4 | S80: 80.8 | T80: 43.6 | U80: 87.2 | V80: 1.6 | W80: 10 | X80: 21.2 | Y80: 62.35294118 | Z80: 0 | AB80: 0 | AE80: 20 | AF80: 40
A81: 53 | B81: 1GV18EC035 | C81: SIDDHITHA S | E81: 15 | F81: 12 | G81: 9 | H81: 10 | I81: 15 | J81: 18 | K81: 9 | L81: 10 | M81: 0 | N81: 2 | O81: 7 | P81: 10 | R81: 38.8 | S81: 77.6 | T81: 43.6 | U81: 87.2 | V81: 1.6 | W81: 10 | X81: 15.6 | Y81: 45.88235294 | Z81: 0 | AB81: 0 | AE81: 21 | AF81: 42
A82: 54 | B82: 1GV17EC047 | C82: TEJESASHWSI ONGOLE Y | E82: 7 | G82: 8 | H82: 10 | I82: 10 | J82: 5 | K82: 5 | L82: 10 | M82: 0 | P82: 10 | R82: 22 | S82: 44 | T82: 26 | U82: 52 | V82: 0 | W82: 0 | X82: 10 | Y82: 29.41176471 | Z82: 0 | AB82: 0 | AE82: 13 | AF82: 26
A83: 55 | B83: 1GV16EC038 | C83: RACHANA K R | E83: 7 | G83: 8 | H83: 10 | I83: 10 | J83: 10 | K83: 3 | L83: 10 | M83: 0 | P83: 10 | R83: 22 | S83: 44 | T83: 28.4 | U83: 56.8 | V83: 0 | W83: 0 | X83: 10 | Y83: 29.41176471 | Z83: 0 | AB83: 0 | AE83: 15 | AF83: 30
A84: 56 | B84: 1GV20EC400 | C84: ARUN KUMAR N | H84: 10 | L84: 10 | M84: 0 | P84: 10 | R84: 10 | S84: 20 | T84: 10 | U84: 20 | V84: 0 | W84: 0 | X84: 10 | Y84: 29.41176471 | Z84: 0 | AB84: 0 | AE84: 3 | AF84: 6
A85: 57 | B85: 1GV20EC401 | C85: BHUVANESH KUMAR U | E85: 12 | F85: 3 | G85: 7 | H85: 10 | I85: 18 | J85: 9 | K85: 8 | L85: 10 | M85: 0 | P85: 10 | R85: 27.6 | S85: 55.2 | T85: 38 | U85: 76 | V85: 0 | W85: 0 | X85: 10 | Y85: 29.41176471 | Z85: 0 | AB85: 0 | AE85: 17 | AF85: 34
A86: 58 | B86: 1GV20EC402 | C86: CHANDRALEKHA M | E86: 12 | F86: 14 | G86: 8 | H86: 10 | I86: 18 | J86: 16 | K86: 8 | L86: 10 | M86: 15 | N86: 10 | O86: 4 | P86: 10 | R86: 37.2 | S86: 74.4 | T86: 43.6 | U86: 87.2 | V86: 8 | W86: 50 | X86: 25.2 | Y86: 74.11764706 | Z86: 0 | AB86: 0 | AE86: 29 | AF86: 58
A87: 59 | B87: 1GV20EC404 | C87: VEDASHREE GM | E87: 12 | F87: 14 | G87: 8 | H87: 10 | I87: 18 | J87: 18 | K87: 8 | L87: 10 | M87: 14 | N87: 6 | O87: 3 | P87: 10 | R87: 37.2 | S87: 74.4 | T87: 45.2 | U87: 90.4 | V87: 4.8 | W87: 30 | X87: 23.6 | Y87: 69.41176471 | Z87: 0 | AB87: 0 | AE87: 28 | AF87: 56
A88: 60 | B88: 1GV20EC405 | C88: VIJAYKUMAR R | E88: 8 | F88: 10 | G88: 8 | H88: 10 | I88: 12 | J88: 12 | K88: 6 | L88: 10 | M88: 11 | N88: 6 | O88: 4 | P88: 10 | R88: 30.8 | S88: 61.6 | T88: 34 | U88: 68 | V88: 4.8 | W88: 30 | X88: 22 | Y88: 64.70588235 | Z88: 0 | AB88: 0 | AE88: 17 | AF88: 34
C89: =S8-COUNTIF(C29:C88,"") -> 60 | R89: CO1 | S89: =COUNTIF(S29:S88,">=50") -> 56 | T89: CO2 | U89: =COUNTIF(U29:U88,">=50") -> 57 | V89: CO3 | W89: =COUNTIF(W29:W88,">=50") -> 34 | X89: CO4 | Y89: =COUNTIF(Y29:Y88,">=50") -> 47 | Z89: CO5 | AA89: =COUNTIF(AA29:AA88,">=50") -> 0 | AB89: CO6 | AC89: =COUNTIF(AC29:AC88,">=50") -> 0 | AE89: VTU | AF89: =COUNTIF(AF29:AF88,">=50") -> 28
B111: =" Target is "&D24&"% marks" -> Target is 50% marks
B112: ="Attainment level 1: 40% students scoring more than " &D24 &"% marks" -> Attainment level 1: 40% students scoring more than 50% marks
B113: ="Attainment level 2: 45% students scoring more than "&D24 &"% marks" -> Attainment level 2: 45% students scoring more than 50% marks
B114: ="Attainment level 3: 50% students scoring more than " &D24 &"% marks" -> Attainment level 3: 50% students scoring more than 50% marks
B116: ="PERCENTAGE OF STUDENTS SCORING > "&D24 &"% of Marks (For Internal Assessment)" -> PERCENTAGE OF STUDENTS SCORING > 50% of Marks (For Internal Assessment)
B117: CO'S | N117: CO1 | Q117: CO2 | S117: CO3 | U117: CO4 | W117: CO5 | Y117: CO6
B118: ="Number of Students Scored above " &D24 &"% marks" -> Number of Students Scored above 50% marks | N118: =S89 -> 56 | Q118: =U89 -> 57 | S118: =W89 -> 34 | U118: =Y89 -> 47 | W118: =AA89 -> 0 | Y118: =AC89 -> 0
B119: Number of Students attempted the test | N119: =$S$8 -> 60 | Q119: =$S$8 -> 60 | S119: =$S$8 -> 60 | U119: =$S$8 -> 60 | W119: =$S$8 -> 60 | Y119: =$S$8 -> 60
B120: % OF STUDENTS | N120: =IF(W19=0,"",N118*100/N119) -> 93.33333333 | Q120: =IF(W20=0,"",Q118*100/Q119) -> 95 | S120: =IF(W21=0,"",S118*100/S119) -> 56.66666667 | U120: =IF(W22=0,"",U118*100/U119) -> 78.33333333 | W120: =IF(W23=0,"",W118*100/W119) ->  | Y120: =IF(W24=0,"",Y118*100/Y119) -> 
B121: Attainment Level | N121: =IF(W19=0,"",IF(N120>=50,3,IF(N120>=45,2,IF(N120>=40,1,0)))) -> 3 | Q121: =IF(W20=0,"",IF(Q120>=50,3,IF(Q120>=45,2,IF(Q120>=40,1,0)))) -> 3 | S121: =IF(W21=0,"",IF(S120>=50,3,IF(S120>=45,2,IF(S120>=40,1,0)))) -> 3 | U121: =IF(W22=0,"",IF(U120>=50,3,IF(U120>=45,2,IF(U120>=40,1,0)))) -> 3 | W121: =IF(W23=0,"",IF(W120>=50,3,IF(W120>=45,2,IF(W120>=40,1,0)))) ->  | Y121: =IF(W24=0,"",IF(Y120>=50,3,IF(Y120>=45,2,IF(Y120>=40,1,0)))) -> 
B123: ="PERCENTAGE OF STUDENTS SCORING > "& D24 &"% of marks (For University Examination)" -> PERCENTAGE OF STUDENTS SCORING > 50% of marks (For University Examination)
B124: ="Number of Students Scored above "&D24&" % of Marks" -> Number of Students Scored above 50 % of Marks | R124: =AF89 -> 28
B125: Number of Students attempted the Examination | R125: =S8 -> 60
B126: % OF STUDENTS | R126: =R124*100/R125 -> 46.66666667
B127: Attainment Level | R127: =IF(R126>=50,3,IF(R126>=45,2,IF(R126>=40,1,0))) -> 2
B129: Calculation for CO attainment by direct assessment (40% weightage for IA & 60% SEE marks) | I129: Attainment | M129: CO attainment using Course survey | V129: Overall CO attainment | AI129: Weghtage for Indirect assessment
B131: CO1 | I131: =IF(W19=0,"",(0.4*N120/100+0.6*$R$126/100)) -> 0.6533333333 | M131: CO1 | R131: 0.938 | V131: CO1 | AA131: =IF(I131="","",(I131*$AI$132+R131*$AJ$132)) -> 0.7102666667 | AI131: Direct | AJ131: Indirect
B132: CO2 | I132: =IF(W20=0,"",(0.4*Q120/100+0.6*$R$126/100)) -> 0.66 | M132: CO2 | R132: 0.897 | V132: CO2 | AA132: =IF(I132="","",(I132*$AI$132+R132*$AJ$132)) -> 0.7074 | AI132: 0.8 | AJ132: 0.2
B133: CO3 | I133: =IF(W21=0,"",(0.4*S120/100+0.6*$R$126/100)) -> 0.5066666667 | M133: CO3 | R133: 0.8707 | V133: CO3 | AA133: 0.5794733333
B134: CO4 | I134: =IF(W22=0,"",(0.4*U120/100+0.6*$R$126/100)) -> 0.5933333333 | M134: CO4 | R134: 0.8639 | V134: CO4 | AA134: 0.6474466667
B135: CO5 | I135: =IF(W23=0,"",(0.4*W120/100+0.6*$R$126/100)) ->  | M135: CO5 | V135: CO5
B136: CO6 | I136: =IF(W24=0,"",(0.4*Y120/100+0.6*$R$126/100)) ->  | M136: CO6 | V136: CO6
C139: PO MAPPING | U139: PSO MAPPING
C140: CO'S | E140: 1 | F140: 2 | G140: 3 | H140: 4 | I140: 5 | J140: 6 | K140: 7 | L140: 8 | M140: 9 | N140: 10 | O140: 11 | P140: 12 | U140: CO'S | Z140: 1 | AA140: 2 | AB140: 3
C141: CO1 | E141: 3 | F141: 3 | U141: CO1 | Z141: 2
C142: CO2 | E142: 3 | F142: 2 | G142: 1 | U142: CO2 | AA142: 2
C143: CO3 | E143: 3 | F143: 2 | G143: 1 | U143: CO3
C144: CO4 | E144: 3 | F144: 2 | U144: CO4
C145: CO5 | U145: CO5
C146: CO6 | U146: CO6
C147: Total | E147: =SUM(E141:E146) -> 12 | F147: =SUM(F141:F146) -> 9 | G147: 2 | H147: 0 | I147: 0 | J147: 0 | K147: 0 | L147: 0 | M147: 0 | N147: 0 | O147: 0 | P147: 0 | U147: Total | Z147: =SUM(Z141:Z146) -> 2 | AA147: =SUM(AA141:AA146) -> 2 | AB147: 0
C148: PO AVERAGE | E148: =IF(E147=0,"",AVERAGE(E141:E146)) -> 3 | F148: =IF(F147=0,"",AVERAGE(F141:F146)) -> 2.25 | G148: 1 | U148: PSO AVERAGE | Z148: =IF(Z147=0,"",AVERAGE(Z141:Z146)) -> 2 | AA148: =IF(AA147=0,"",AVERAGE(AA141:AA146)) -> 2
C151: ATTAINMENT | U151: ATTAINMENT
C153: CO'S | E153: 1 | F153: 2 | G153: 3 | H153: 4 | I153: 5 | J153: 6 | K153: 7 | L153: 8 | M153: 9 | N153: 10 | O153: 11 | P153: 12 | U153: CO'S | Z153: 1 | AA153: 2 | AB153: 3
C154: CO1 | E154: =IF(E141="","",(E141*$AA$131)) -> 2.1308 | F154: =IF(F141="","",(F141*$AA$131)) -> 2.1308 | U154: CO1 | Z154: =IF(Z141="","",(Z141*$AA$131)) -> 1.420533333 | AA154: =IF(AA141="","",(AA141*$AA$131)) -> 
C155: CO2 | E155: =IF(E142="","",(E142*$AA$132)) -> 2.1222 | F155: =IF(F142="","",(F142*$AA$132)) -> 1.4148 | G155: 0.7074 | U155: CO2 | Z155: =IF(Z142="","",(Z142*$AA$132)) ->  | AA155: =IF(AA142="","",(AA142*$AA$132)) -> 1.4148
C156: CO3 | E156: =IF(E143="","",(E143*$AA$133)) -> 1.73842 | F156: =IF(F143="","",(F143*$AA$133)) -> 1.158946667 | G156: 0.5794733333 | U156: CO3 | Z156: =IF(Z143="","",(Z143*$AA$133)) ->  | AA156: =IF(AA143="","",(AA143*$AA$133)) -> 
C157: CO4 | E157: =IF(E144="","",(E144*$AA$134)) -> 1.94234 | F157: =IF(F144="","",(F144*$AA$134)) -> 1.294893333 | U157: CO4 | Z157: =IF(Z144="","",(Z144*$AA$134)) ->  | AA157: =IF(AA144="","",(AA144*$AA$134)) -> 
C158: CO5 | E158: =IF(E145="","",(E145*$AA$135)) ->  | F158: =IF(F145="","",(F145*$AA$135)) ->  | U158: CO5 | Z158: =IF(Z145="","",(Z145*$AA$135)) ->  | AA158: =IF(AA145="","",(AA145*$AA$135)) -> 
C159: CO6 | E159: =IF(E146="","",(E146*$AA$136)) ->  | F159: =IF(F146="","",(F146*$AA$136)) ->  | U159: CO6 | Z159: =IF(Z146="","",(Z146*$AA$136)) ->  | AA159: =IF(AA146="","",(AA146*$AA$136)) -> 
C160: PO AVERAGE | E160: =IF(E147=0,"",AVERAGE(E154:E159)) -> 1.98344 | F160: =IF(F147=0,"",AVERAGE(F154:F159)) -> 1.49986 | G160: 0.6434366667 | U160: PSO AVERAGE | Z160: =IF(Z147=0,"",AVERAGE(Z154:Z159)) -> 1.420533333 | AA160: =IF(AA147=0,"",AVERAGE(AA154:AA159)) -> 1.4148
C175: Prepared by
C176: Dr. P D Sudersanan, Dr.TTIT, K.G.F.

Sheet List of Students
I3: ='PO Attainment'!S8 -> 60
A4: F.No-DrTTIT/IQAC/2020-21/002AP
A5: ="Department of " &'PO Attainment'!C6 &" Engineering" -> Department of Electronics & Communication Engineering
A6: =" Academic Year "&'PO Attainment'!C8 -> Academic Year 2020-21
A7: Students Name List
A8: Sem: | B8: ='PO Attainment'!C5 -> IV | C8: Date: | D8: =TODAY() -> 2021-11-12
A9: Sl.No | B9: USN | C9: Name of the Student
A10: ='PO Attainment'!A29 -> 1 | B10: ='PO Attainment'!B29 -> 1GV19EC002 | C10: ='PO Attainment'!C29 -> AKSHAYA K A
A11: ='PO Attainment'!A30 -> 2 | B11: ='PO Attainment'!B30 -> 1GV19EC003 | C11: ='PO Attainment'!C30 -> AVINASH BABU B
A12: ='PO Attainment'!A31 -> 3 | B12: ='PO Attainment'!B31 -> 1GV19EC005 | C12: ='PO Attainment'!C31 -> BHARATH KUMAR R
A13: ='PO Attainment'!A32 -> 4 | B13: ='PO Attainment'!B32 -> 1GV19EC006 | C13: ='PO Attainment'!C32 -> BHARGAVI S
A14: ='PO Attainment'!A33 -> 5 | B14: ='PO Attainment'!B33 -> 1GV19EC007 | C14: ='PO Attainment'!C33 -> CHAITHANYA K K V
A15: ='PO Attainment'!A34 -> 6 | B15: ='PO Attainment'!B34 -> 1GV19EC008 | C15: ='PO Attainment'!C34 -> DEEPAK R
A16: ='PO Attainment'!A35 -> 7 | B16: ='PO Attainment'!B35 -> 1GV19EC009 | C16: ='PO Attainment'!C35 -> DIVYA PRIYA G R
A17: ='PO Attainment'!A36 -> 8 | B17: ='PO Attainment'!B36 -> 1GV19EC010 | C17: ='PO Attainment'!C36 -> DIVYA SWETHA J
A18: ='PO Attainment'!A37 -> 9 | B18: ='PO Attainment'!B37 -> 1GV19EC011 | C18: ='PO Attainment'!C37 -> EVANGELIN P
A19: ='PO Attainment'!A38 -> 10 | B19: ='PO Attainment'!B38 -> 1GV19EC012 | C19: ='PO Attainment'!C38 -> FARHEEN TAJ
A20: ='PO Attainment'!A39 -> 11 | B20: ='PO Attainment'!B39 -> 1GV19EC014 | C20: ='PO Attainment'!C39 -> HARISHAKTHI N
A21: ='PO Attainment'!A40 -> 12 | B21: ='PO Attainment'!B40 -> 1GV19EC015 | C21: ='PO Attainment'!C40 -> JAISHNAVI U
A22: ='PO Attainment'!A41 -> 13 | B22: ='PO Attainment'!B41 -> 1GV19EC017 | C22: ='PO Attainment'!C41 -> KANISHA R
A23: ='PO Attainment'!A42 -> 14 | B23: ='PO Attainment'!B42 -> 1GV19EC018 | C23: ='PO Attainment'!C42 -> KAVYA RAJ
A24: ='PO Attainment'!A43 -> 15 | B24: ='PO Attainment'!B43 -> 1GV19EC019 | C24: ='PO Attainment'!C43 -> KEERTHANA B S
A25: ='PO Attainment'!A44 -> 16 | B25: ='PO Attainment'!B44 -> 1GV19EC020 | C25: ='PO Attainment'!C44 -> KRITHIKA A
A26: ='PO Attainment'!A45 -> 17 | B26: ='PO Attainment'!B45 -> 1GV19EC021 | C26: ='PO Attainment'!C45 -> LEEKATH UNNISSA A
A27: ='PO Attainment'!A46 -> 18 | B27: ='PO Attainment'!B46 -> 1GV19EC022 | C27: ='PO Attainment'!C46 -> MAHALAKSHMI S
A28: ='PO Attainment'!A47 -> 19 | B28: ='PO Attainment'!B47 -> 1GV19EC023 | C28: ='PO Attainment'!C47 -> MARY VINISHA B
A29: ='PO Attainment'!A48 -> 20 | B29: ='PO Attainment'!B48 -> 1GV19EC024 | C29: ='PO Attainment'!C48 -> MOHAMMED IRFAN
A30: ='PO Attainment'!A49 -> 21 | B30: ='PO Attainment'!B49 -> 1GV19EC026 | C30: ='PO Attainment'!C49 -> MOHAN C R
A31: ='PO Attainment'!A50 -> 22 | B31: ='PO Attainment'!B50 -> 1GV19EC027 | C31: ='PO Attainment'!C50 -> MOUNIKA V
A32: ='PO Attainment'!A51 -> 23 | B32: ='PO Attainment'!B51 -> 1GV19EC028 | C32: ='PO Attainment'!C51 -> MOUNISHA N N
A33: ='PO Attainment'!A52 -> 24 | B33: ='PO Attainment'!B52 -> 1GV19EC029 | C33: ='PO Attainment'!C52 -> NOMESHWAR V
A34: ='PO Attainment'!A53 -> 25 | B34: ='PO Attainment'!B53 -> 1GV19EC030 | C34: ='PO Attainment'!C53 -> POOJA G V
A35: ='PO Attainment'!A54 -> 26 | B35: ='PO Attainment'!B54 -> 1GV19EC033 | C35: ='PO Attainment'!C54 -> RISHIKA R
A36: ='PO Attainment'!A55 -> 27 | B36: ='PO Attainment'!B55 -> 1GV19EC034 | C36: ='PO Attainment'!C55 -> SAFNA FIRDOUS E K
A37: ='PO Attainment'!A56 -> 28 | B37: ='PO Attainment'!B56 -> 1GV19EC035 | C37: ='PO Attainment'!C56 -> SAHANA K
A38: ='PO Attainment'!A57 -> 29 | B38: ='PO Attainment'!B57 -> 1GV19EC036 | C38: ='PO Attainment'!C57 -> SAIMANIMALA S
A39: ='PO Attainment'!A58 -> 30 | B39: ='PO Attainment'!B58 -> 1GV19EC037 | C39: ='PO Attainment'!C58 -> SAKTHI RAGAVAN
A40: ='PO Attainment'!A59 -> 31 | B40: ='PO Attainment'!B59 -> 1GV19EC039 | C40: ='PO Attainment'!C59 -> SHARMILA A
A41: ='PO Attainment'!A60 -> 32 | B41: ='PO Attainment'!B60 -> 1GV19EC040 | C41: ='PO Attainment'!C60 -> SHYAM KUMAR P
A42: ='PO Attainment'!A61 -> 33 | B42: ='PO Attainment'!B61 -> 1GV19EC041 | C42: ='PO Attainment'!C61 -> SNEHA N
A43: ='PO Attainment'!A62 -> 34 | B43: ='PO Attainment'!B62 -> 1GV19EC042 | C43: ='PO Attainment'!C62 -> SNEHA S
A44: ='PO Attainment'!A63 -> 35 | B44: ='PO Attainment'!B63 -> 1GV19EC043 | C44: ='PO Attainment'!C63 -> SOUJANYA D
A45: ='PO Attainment'!A64 -> 36 | B45: ='PO Attainment'!B64 -> 1GV19EC044 | C45: ='PO Attainment'!C64 -> SOWMIYA J
A46: ='PO Attainment'!A65 -> 37 | B46: ='PO Attainment'!B65 -> 1GV19EC045 | C46: ='PO Attainment'!C65 -> SUJITHA S
A47: ='PO Attainment'!A66 -> 38 | B47: ='PO Attainment'!B66 -> 1GV19EC046 | C47: ='PO Attainment'!C66 -> SUMITH R
A48: ='PO Attainment'!A67 -> 39 | B48: ='PO Attainment'!B67 -> 1GV19EC047 | C48: ='PO Attainment'!C67 -> SURYA H G
A49: ='PO Attainment'!A68 -> 40 | B49: ='PO Attainment'!B68 -> 1GV19EC048 | C49: ='PO Attainment'!C68 -> SWETHA T
A50: ='PO Attainment'!A69 -> 41 | B50: ='PO Attainment'!B69 -> 1GV19EC049 | C50: ='PO Attainment'!C69 -> SYED ASHWAQ AHMED M
A51: ='PO Attainment'!A70 -> 42 | B51: ='PO Attainment'!B70 -> 1GV19EC050 | C51: ='PO Attainment'!C70 -> TRIBHUVAN S R
A52: ='PO Attainment'!A71 -> 43 | B52: ='PO Attainment'!B71 -> 1GV19EC051 | C52: ='PO Attainment'!C71 -> VANDANA K
A53: ='PO Attainment'!A72 -> 44 | B53: ='PO Attainment'!B72 -> 1GV19EC052 | C53: ='PO Attainment'!C72 -> VARADARAJU D
A54: ='PO Attainment'!A73 -> 45 | B54: ='PO Attainment'!B73 -> 1GV19EC053 | C54: ='PO Attainment'!C73 -> VIDHYA G N
A55: ='PO Attainment'!A74 -> 46 | B55: ='PO Attainment'!B74 -> 1GV19EC054 | C55: ='PO Attainment'!C74 -> VIDYA M
A56: ='PO Attainment'!A75 -> 47 | B56: ='PO Attainment'!B75 -> 1GV19EC057 | C56: ='PO Attainment'!C75 -> GRITA A
A57: ='PO Attainment'!A76 -> 48 | B57: ='PO Attainment'!B76 -> 1GV19EC058 | C57: ='PO Attainment'!C76 -> TABREZ AHMED N
A58: ='PO Attainment'!A77 -> 49 | B58: ='PO Attainment'!B77 -> 1GV18EC012 | C58: ='PO Attainment'!C77 -> KENNETH BENNY J
A59: ='PO Attainment'!A78 -> 50 | B59: ='PO Attainment'!B78 -> 1GV18EC013 | C59: ='PO Attainment'!C78 -> KEZIA R
A60: ='PO Attainment'!A79 -> 51 | B60: ='PO Attainment'!B79 -> 1GV18EC022 | C60: ='PO Attainment'!C79 -> PAVITHRA. P
A61: ='PO Attainment'!A80 -> 52 | B61: ='PO Attainment'!B80 -> 1GV18EC033 | C61: ='PO Attainment'!C80 -> SHREEJA R
A62: ='PO Attainment'!A81 -> 53 | B62: ='PO Attainment'!B81 -> 1GV18EC035 | C62: ='PO Attainment'!C81 -> SIDDHITHA S
A63: ='PO Attainment'!A82 -> 54 | B63: ='PO Attainment'!B82 -> 1GV17EC047 | C63: ='PO Attainment'!C82 -> TEJESASHWSI ONGOLE Y
A64: ='PO Attainment'!A83 -> 55 | B64: ='PO Attainment'!B83 -> 1GV16EC038 | C64: ='PO Attainment'!C83 -> RACHANA K R
A65: ='PO Attainment'!A84 -> 56 | B65: ='PO Attainment'!B84 -> 1GV20EC400 | C65: ='PO Attainment'!C84 -> ARUN KUMAR N
A66: ='PO Attainment'!A85 -> 57 | B66: ='PO Attainment'!B85 -> 1GV20EC401 | C66: ='PO Attainment'!C85 -> BHUVANESH KUMAR U
A67: ='PO Attainment'!A86 -> 58 | B67: ='PO Attainment'!B86 -> 1GV20EC402 | C67: ='PO Attainment'!C86 -> CHANDRALEKHA M
A68: ='PO Attainment'!A87 -> 59 | B68: ='PO Attainment'!B87 -> 1GV20EC404 | C68: ='PO Attainment'!C87 -> VEDASHREE GM
A69: ='PO Attainment'!A88 -> 60 | B69: ='PO Attainment'!B88 -> 1GV20EC405 | C69: ='PO Attainment'!C88 -> VIJAYKUMAR R
A71: Class Coordinator | C71: HOD

Sheet T1
I3: ='PO Attainment'!S8 -> 60 | J3: =COUNTIF(F10:F69,">=15.5") -> 58 | K3: =COUNTIF(F10:F69,">30") -> 50
A4: F.No-DrTTIT/IQAC/2020-21/066IAP
A5: ="Department of " &'PO Attainment'!C6 &" Engineering" -> Department of Electronics & Communication Engineering
A6: Academic Year 2020-21
A7: Internal Test - IA1
A8: Sem | B8: ='PO Attainment'!C5 -> IV
A9: Sl.No | B9: USN | C9: Name of the Student | D9: IA Marks | E9: Assgn Marks | F9: Total marks
A10: ='List of Students'!A10 -> 1 | B10: ='PO Attainment'!B29 -> 1GV19EC002 | C10: ='PO Attainment'!C29 -> AKSHAYA K A | D10: =('PO Attainment'!E29+'PO Attainment'!F29+'PO Attainment'!G29)*'PO Attainment'!$AH$19 -> 34.4 | E10: ='PO Attainment'!H29*'PO Attainment'!$AI$19 -> 10 | F10: =D10+E10 -> 44.4
A11: ='List of Students'!A11 -> 2 | B11: ='PO Attainment'!B30 -> 1GV19EC003 | C11: ='PO Attainment'!C30 -> AVINASH BABU B | D11: =('PO Attainment'!E30+'PO Attainment'!F30+'PO Attainment'!G30)*'PO Attainment'!$AH$19 -> 28.8 | E11: ='PO Attainment'!H30*'PO Attainment'!$AI$19 -> 10 | F11: =D11+E11 -> 38.8
A12: ='List of Students'!A12 -> 3 | B12: ='PO Attainment'!B31 -> 1GV19EC005 | C12: ='PO Attainment'!C31 -> BHARATH KUMAR R | D12: =('PO Attainment'!E31+'PO Attainment'!F31+'PO Attainment'!G31)*'PO Attainment'!$AH$19 -> 24 | E12: ='PO Attainment'!H31*'PO Attainment'!$AI$19 -> 10 | F12: 34
A13: ='List of Students'!A13 -> 4 | B13: ='PO Attainment'!B32 -> 1GV19EC006 | C13: ='PO Attainment'!C32 -> BHARGAVI S | D13: =('PO Attainment'!E32+'PO Attainment'!F32+'PO Attainment'!G32)*'PO Attainment'!$AH$19 -> 35.2 | E13: ='PO Attainment'!H32*'PO Attainment'!$AI$19 -> 10 | F13: 45.2
A14: ='List of Students'!A14 -> 5 | B14: ='PO Attainment'!B33 -> 1GV19EC007 | C14: ='PO Attainment'!C33 -> CHAITHANYA K K V | D14: =('PO Attainment'!E33+'PO Attainment'!F33+'PO Attainment'!G33)*'PO Attainment'!$AH$19 -> 28.8 | E14: ='PO Attainment'!H33*'PO Attainment'!$AI$19 -> 10 | F14: 38.8
A15: ='List of Students'!A15 -> 6 | B15: ='PO Attainment'!B34 -> 1GV19EC008 | C15: ='PO Attainment'!C34 -> DEEPAK R | D15: =('PO Attainment'!E34+'PO Attainment'!F34+'PO Attainment'!G34)*'PO Attainment'!$AH$19 -> 19.2 | E15: ='PO Attainment'!H34*'PO Attainment'!$AI$19 -> 10 | F15: 29.2
A16: ='List of Students'!A16 -> 7 | B16: ='PO Attainment'!B35 -> 1GV19EC009 | C16: ='PO Attainment'!C35 -> DIVYA PRIYA G R | D16: =('PO Attainment'!E35+'PO Attainment'!F35+'PO Attainment'!G35)*'PO Attainment'!$AH$19 -> 32 | E16: ='PO Attainment'!H35*'PO Attainment'!$AI$19 -> 10 | F16: 42
A17: ='List of Students'!A17 -> 8 | B17: ='PO Attainment'!B36 -> 1GV19EC010 | C17: ='PO Attainment'!C36 -> DIVYA SWETHA J | D17: =('PO Attainment'!E36+'PO Attainment'!F36+'PO Attainment'!G36)*'PO Attainment'!$AH$19 -> 36 | E17: ='PO Attainment'!H36*'PO Attainment'!$AI$19 -> 10 | F17: 46
A18: ='List of Students'!A18 -> 9 | B18: ='PO Attainment'!B37 -> 1GV19EC011 | C18: ='PO Attainment'!C37 -> EVANGELIN P | D18: =('PO Attainment'!E37+'PO Attainment'!F37+'PO Attainment'!G37)*'PO Attainment'!$AH$19 -> 23.2 | E18: ='PO Attainment'!H37*'PO Attainment'!$AI$19 -> 10 | F18: 33.2
A19: ='List of Students'!A19 -> 10 | B19: ='PO Attainment'!B38 -> 1GV19EC012 | C19: ='PO Attainment'!C38 -> FARHEEN TAJ | D19: =('PO Attainment'!E38+'PO Attainment'!F38+'PO Attainment'!G38)*'PO Attainment'!$AH$19 -> 32 | E19: ='PO Attainment'!H38*'PO Attainment'!$AI$19 -> 10 | F19: 42
A20: ='List of Students'!A20 -> 11 | B20: ='PO Attainment'!B39 -> 1GV19EC014 | C20: ='PO Attainment'!C39 -> HARISHAKTHI N | D20: =('PO Attainment'!E39+'PO Attainment'!F39+'PO Attainment'!G39)*'PO Attainment'!$AH$19 -> 28.8 | E20: ='PO Attainment'!H39*'PO Attainment'!$AI$19 -> 10 | F20: 38.8
A21: ='List of Students'!A21 -> 12 | B21: ='PO Attainment'!B40 -> 1GV19EC015 | C21: ='PO Attainment'!C40 -> JAISHNAVI U | D21: =('PO Attainment'!E40+'PO Attainment'!F40+'PO Attainment'!G40)*'PO Attainment'!$AH$19 -> 27.2 | E21: ='PO Attainment'!H40*'PO Attainment'!$AI$19 -> 10 | F21: 37.2
A22: ='List of Students'!A22 -> 13 | B22: ='PO Attainment'!B41 -> 1GV19EC017 | C22: ='PO Attainment'!C41 -> KANISHA R | D22: =('PO Attainment'!E41+'PO Attainment'!F41+'PO Attainment'!G41)*'PO Attainment'!$AH$19 -> 28.8 | E22: ='PO Attainment'!H41*'PO Attainment'!$AI$19 -> 10 | F22: 38.8
A23: ='List of Students'!A23 -> 14 | B23: ='PO Attainment'!B42 -> 1GV19EC018 | C23: ='PO Attainment'!C42 -> KAVYA RAJ | D23: =('PO Attainment'!E42+'PO Attainment'!F42+'PO Attainment'!G42)*'PO Attainment'!$AH$19 -> 28.8 | E23: ='PO Attainment'!H42*'PO Attainment'!$AI$19 -> 10 | F23: 38.8
A24: ='List of Students'!A24 -> 15 | B24: ='PO Attainment'!B43 -> 1GV19EC019 | C24: ='PO Attainment'!C43 -> KEERTHANA B S | D24: =('PO Attainment'!E43+'PO Attainment'!F43+'PO Attainment'!G43)*'PO Attainment'!$AH$19 -> 25.6 | E24: ='PO Attainment'!H43*'PO Attainment'!$AI$19 -> 10 | F24: 35.6
A25: ='List of Students'!A25 -> 16 | B25: ='PO Attainment'!B44 -> 1GV19EC020 | C25: ='PO Attainment'!C44 -> KRITHIKA A | D25: =('PO Attainment'!E44+'PO Attainment'!F44+'PO Attainment'!G44)*'PO Attainment'!$AH$19 -> 22.4 | E25: ='PO Attainment'!H44*'PO Attainment'!$AI$19 -> 10 | F25: 32.4
A26: ='List of Students'!A26 -> 17 | B26: ='PO Attainment'!B45 -> 1GV19EC021 | C26: ='PO Attainment'!C45 -> LEEKATH UNNISSA A | D26: =('PO Attainment'!E45+'PO Attainment'!F45+'PO Attainment'!G45)*'PO Attainment'!$AH$19 -> 32 | E26: ='PO Attainment'!H45*'PO Attainment'!$AI$19 -> 10 | F26: 42
A27: ='List of Students'!A27 -> 18 | B27: ='PO Attainment'!B46 -> 1GV19EC022 | C27: ='PO Attainment'!C46 -> MAHALAKSHMI S | D27: =('PO Attainment'!E46+'PO Attainment'!F46+'PO Attainment'!G46)*'PO Attainment'!$AH$19 -> 28.8 | E27: ='PO Attainment'!H46*'PO Attainment'!$AI$19 -> 10 | F27: 38.8
A28: ='List of Students'!A28 -> 19 | B28: ='PO Attainment'!B47 -> 1GV19EC023 | C28: ='PO Attainment'!C47 -> MARY VINISHA B | D28: =('PO Attainment'!E47+'PO Attainment'!F47+'PO Attainment'!G47)*'PO Attainment'!$AH$19 -> 29.6 | E28: ='PO Attainment'!H47*'PO Attainment'!$AI$19 -> 10 | F28: 39.6
A29: ='List of Students'!A29 -> 20 | B29: ='PO Attainment'!B48 -> 1GV19EC024 | C29: ='PO Attainment'!C48 -> MOHAMMED IRFAN | D29: =('PO Attainment'!E48+'PO Attainment'!F48+'PO Attainment'!G48)*'PO Attainment'!$AH$19 -> 33.6 | E29: ='PO Attainment'!H48*'PO Attainment'!$AI$19 -> 10 | F29: 43.6
A30: ='List of Students'!A30 -> 21 | B30: ='PO Attainment'!B49 -> 1GV19EC026 | C30: ='PO Attainment'!C49 -> MOHAN C R | D30: =('PO Attainment'!E49+'PO Attainment'!F49+'PO Attainment'!G49)*'PO Attainment'!$AH$19 -> 31.2 | E30: ='PO Attainment'!H49*'PO Attainment'!$AI$19 -> 10 | F30: 41.2
A31: ='List of Students'!A31 -> 22 | B31: ='PO Attainment'!B50 -> 1GV19EC027 | C31: ='PO Attainment'!C50 -> MOUNIKA V | D31: =('PO Attainment'!E50+'PO Attainment'!F50+'PO Attainment'!G50)*'PO Attainment'!$AH$19 -> 21.6 | E31: ='PO Attainment'!H50*'PO Attainment'!$AI$19 -> 10 | F31: 31.6
A32: ='List of Students'!A32 -> 23 | B32: ='PO Attainment'!B51 -> 1GV19EC028 | C32: ='PO Attainment'!C51 -> MOUNISHA N N | D32: =('PO Attainment'!E51+'PO Attainment'!F51+'PO Attainment'!G51)*'PO Attainment'!$AH$19 -> 31.2 | E32: ='PO Attainment'!H51*'PO Attainment'!$AI$19 -> 10 | F32: 41.2
A33: ='List of Students'!A33 -> 24 | B33: ='PO Attainment'!B52 -> 1GV19EC029 | C33: ='PO Attainment'!C52 -> NOMESHWAR V | D33: =('PO Attainment'!E52+'PO Attainment'!F52+'PO Attainment'!G52)*'PO Attainment'!$AH$19 -> 28.8 | E33: ='PO Attainment'!H52*'PO Attainment'!$AI$19 -> 10 | F33: 38.8
A34: ='List of Students'!A34 -> 25 | B34: ='PO Attainment'!B53 -> 1GV19EC030 | C34: ='PO Attainment'!C53 -> POOJA G V | D34: =('PO Attainment'!E53+'PO Attainment'!F53+'PO Attainment'!G53)*'PO Attainment'!$AH$19 -> 24 | E34: ='PO Attainment'!H53*'PO Attainment'!$AI$19 -> 10 | F34: 34
A35: ='List of Students'!A35 -> 26 | B35: ='PO Attainment'!B54 -> 1GV19EC033 | C35: ='PO Attainment'!C54 -> RISHIKA R | D35: =('PO Attainment'!E54+'PO Attainment'!F54+'PO Attainment'!G54)*'PO Attainment'!$AH$19 -> 0 | E35: ='PO Attainment'!H54*'PO Attainment'!$AI$19 -> 10 | F35: 10
A36: ='List of Students'!A36 -> 27 | B36: ='PO Attainment'!B55 -> 1GV19EC034 | C36: ='PO Attainment'!C55 -> SAFNA FIRDOUS E K | D36: =('PO Attainment'!E55+'PO Attainment'!F55+'PO Attainment'!G55)*'PO Attainment'!$AH$19 -> 24 | E36: ='PO Attainment'!H55*'PO Attainment'!$AI$19 -> 10 | F36: 34
A37: ='List of Students'!A37 -> 28 | B37: ='PO Attainment'!B56 -> 1GV19EC035 | C37: ='PO Attainment'!C56 -> SAHANA K | D37: =('PO Attainment'!E56+'PO Attainment'!F56+'PO Attainment'!G56)*'PO Attainment'!$AH$19 -> 20.8 | E37: ='PO Attainment'!H56*'PO Attainment'!$AI$19 -> 10 | F37: 30.8
A38: ='List of Students'!A38 -> 29 | B38: ='PO Attainment'!B57 -> 1GV19EC036 | C38: ='PO Attainment'!C57 -> SAIMANIMALA S | D38: =('PO Attainment'!E57+'PO Attainment'!F57+'PO Attainment'!G57)*'PO Attainment'!$AH$19 -> 24 | E38: ='PO Attainment'!H57*'PO Attainment'!$AI$19 -> 10 | F38: 34
A39: ='List of Students'!A39 -> 30 | B39: ='PO Attainment'!B58 -> 1GV19EC037 | C39: ='PO Attainment'!C58 -> SAKTHI RAGAVAN | D39: =('PO Attainment'!E58+'PO Attainment'!F58+'PO Attainment'!G58)*'PO Attainment'!$AH$19 -> 29.6 | E39: ='PO Attainment'!H58*'PO Attainment'!$AI$19 -> 10 | F39: 39.6
A40: ='List of Students'!A40 -> 31 | B40: ='PO Attainment'!B59 -> 1GV19EC039 | C40: ='PO Attainment'!C59 -> SHARMILA A | D40: =('PO Attainment'!E59+'PO Attainment'!F59+'PO Attainment'!G59)*'PO Attainment'!$AH$19 -> 28 | E40: ='PO Attainment'!H59*'PO Attainment'!$AI$19 -> 10 | F40: 38
A41: ='List of Students'!A41 -> 32 | B41: ='PO Attainment'!B60 -> 1GV19EC040 | C41: ='PO Attainment'!C60 -> SHYAM KUMAR P | D41: =('PO Attainment'!E60+'PO Attainment'!F60+'PO Attainment'!G60)*'PO Attainment'!$AH$19 -> 17.6 | E41: ='PO Attainment'!H60*'PO Attainment'!$AI$19 -> 10 | F41: 27.6
A42: ='List of Students'!A42 -> 33 | B42: ='PO Attainment'!B61 -> 1GV19EC041 | C42: ='PO Attainment'!C61 -> SNEHA N | D42: =('PO Attainment'!E61+'PO Attainment'!F61+'PO Attainment'!G61)*'PO Attainment'!$AH$19 -> 29.6 | E42: ='PO Attainment'!H61*'PO Attainment'!$AI$19 -> 10 | F42: 39.6
A43: ='List of Students'!A43 -> 34 | B43: ='PO Attainment'!B62 -> 1GV19EC042 | C43: ='PO Attainment'!C62 -> SNEHA S | D43: =('PO Attainment'!E62+'PO Attainment'!F62+'PO Attainment'!G62)*'PO Attainment'!$AH$19 -> 22.4 | E43: ='PO Attainment'!H62*'PO Attainment'!$AI$19 -> 10 | F43: 32.4
A44: ='List of Students'!A44 -> 35 | B44: ='PO Attainment'!B63 -> 1GV19EC043 | C44: ='PO Attainment'!C63 -> SOUJANYA D | D44: =('PO Attainment'!E63+'PO Attainment'!F63+'PO Attainment'!G63)*'PO Attainment'!$AH$19 -> 26.4 | E44: ='PO Attainment'!H63*'PO Attainment'!$AI$19 -> 10 | F44: 36.4
A45: ='List of Students'!A45 -> 36 | B45: ='PO Attainment'!B64 -> 1GV19EC044 | C45: ='PO Attainment'!C64 -> SOWMIYA J | D45: =('PO Attainment'!E64+'PO Attainment'!F64+'PO Attainment'!G64)*'PO Attainment'!$AH$19 -> 28.8 | E45: ='PO Attainment'!H64*'PO Attainment'!$AI$19 -> 10 | F45: 38.8
A46: ='List of Students'!A46 -> 37 | B46: ='PO Attainment'!B65 -> 1GV19EC045 | C46: ='PO Attainment'!C65 -> SUJITHA S | D46: =('PO Attainment'!E65+'PO Attainment'!F65+'PO Attainment'!G65)*'PO Attainment'!$AH$19 -> 33.6 | E46: ='PO Attainment'!H65*'PO Attainment'!$AI$19 -> 10 | F46: 43.6
A47: ='List of Students'!A47 -> 38 | B47: ='PO Attainment'!B66 -> 1GV19EC046 | C47: ='PO Attainment'!C66 -> SUMITH R | D47: =('PO Attainment'!E66+'PO Attainment'!F66+'PO Attainment'!G66)*'PO Attainment'!$AH$19 -> 25.6 | E47: ='PO Attainment'!H66*'PO Attainment'!$AI$19 -> 10 | F47: 35.6
A48: ='List of Students'!A48 -> 39 | B48: ='PO Attainment'!B67 -> 1GV19EC047 | C48: ='PO Attainment'!C67 -> SURYA H G | D48: =('PO Attainment'!E67+'PO Attainment'!F67+'PO Attainment'!G67)*'PO Attainment'!$AH$19 -> 16.8 | E48: ='PO Attainment'!H67*'PO Attainment'!$AI$19 -> 10 | F48: 26.8
A49: ='List of Students'!A49 -> 40 | B49: ='PO Attainment'!B68 -> 1GV19EC048 | C49: ='PO Attainment'!C68 -> SWETHA T | D49: =('PO Attainment'!E68+'PO Attainment'!F68+'PO Attainment'!G68)*'PO Attainment'!$AH$19 -> 28.8 | E49: ='PO Attainment'!H68*'PO Attainment'!$AI$19 -> 10 | F49: 38.8
A50: ='List of Students'!A50 -> 41 | B50: ='PO Attainment'!B69 -> 1GV19EC049 | C50: ='PO Attainment'!C69 -> SYED ASHWAQ AHMED M | D50: =('PO Attainment'!E69+'PO Attainment'!F69+'PO Attainment'!G69)*'PO Attainment'!$AH$19 -> 29.6 | E50: ='PO Attainment'!H69*'PO Attainment'!$AI$19 -> 10 | F50: 39.6
A51: ='List of Students'!A51 -> 42 | B51: ='PO Attainment'!B70 -> 1GV19EC050 | C51: ='PO Attainment'!C70 -> TRIBHUVAN S R | D51: =('PO Attainment'!E70+'PO Attainment'!F70+'PO Attainment'!G70)*'PO Attainment'!$AH$19 -> 18.4 | E51: ='PO Attainment'!H70*'PO Attainment'!$AI$19 -> 10 | F51: 28.4
A52: ='List of Students'!A52 -> 43 | B52: ='PO Attainment'!B71 -> 1GV19EC051 | C52: ='PO Attainment'!C71 -> VANDANA K | D52: =('PO Attainment'!E71+'PO Attainment'!F71+'PO Attainment'!G71)*'PO Attainment'!$AH$19 -> 28 | E52: ='PO Attainment'!H71*'PO Attainment'!$AI$19 -> 10 | F52: 38
A53: ='List of Students'!A53 -> 44 | B53: ='PO Attainment'!B72 -> 1GV19EC052 | C53: ='PO Attainment'!C72 -> VARADARAJU D | D53: =('PO Attainment'!E72+'PO Attainment'!F72+'PO Attainment'!G72)*'PO Attainment'!$AH$19 -> 23.2 | E53: ='PO Attainment'!H72*'PO Attainment'!$AI$19 -> 10 | F53: 33.2
A54: ='List of Students'!A54 -> 45 | B54: ='PO Attainment'!B73 -> 1GV19EC053 | C54: ='PO Attainment'!C73 -> VIDHYA G N | D54: =('PO Attainment'!E73+'PO Attainment'!F73+'PO Attainment'!G73)*'PO Attainment'!$AH$19 -> 26.4 | E54: ='PO Attainment'!H73*'PO Attainment'!$AI$19 -> 10 | F54: 36.4
A55: ='List of Students'!A55 -> 46 | B55: ='PO Attainment'!B74 -> 1GV19EC054 | C55: ='PO Attainment'!C74 -> VIDYA M | D55: =('PO Attainment'!E74+'PO Attainment'!F74+'PO Attainment'!G74)*'PO Attainment'!$AH$19 -> 24 | E55: ='PO Attainment'!H74*'PO Attainment'!$AI$19 -> 10 | F55: 34
A56: ='List of Students'!A56 -> 47 | B56: ='PO Attainment'!B75 -> 1GV19EC057 | C56: ='PO Attainment'!C75 -> GRITA A | D56: =('PO Attainment'!E75+'PO Attainment'!F75+'PO Attainment'!G75)*'PO Attainment'!$AH$19 -> 36.8 | E56: ='PO Attainment'!H75*'PO Attainment'!$AI$19 -> 10 | F56: 46.8
A57: ='List of Students'!A57 -> 48 | B57: ='PO Attainment'!B76 -> 1GV19EC058 | C57: ='PO Attainment'!C76 -> TABREZ AHMED N | D57: =('PO Attainment'!E76+'PO Attainment'!F76+'PO Attainment'!G76)*'PO Attainment'!$AH$19 -> 31.2 | E57: ='PO Attainment'!H76*'PO Attainment'!$AI$19 -> 10 | F57: 41.2
A58: ='List of Students'!A58 -> 49 | B58: ='PO Attainment'!B77 -> 1GV18EC012 | C58: ='PO Attainment'!C77 -> KENNETH BENNY J | D58: =('PO Attainment'!E77+'PO Attainment'!F77+'PO Attainment'!G77)*'PO Attainment'!$AH$19 -> 16.8 | E58: ='PO Attainment'!H77*'PO Attainment'!$AI$19 -> 10 | F58: 26.8
A59: ='List of Students'!A59 -> 50 | B59: ='PO Attainment'!B78 -> 1GV18EC013 | C59: ='PO Attainment'!C78 -> KEZIA R | D59: =('PO Attainment'!E78+'PO Attainment'!F78+'PO Attainment'!G78)*'PO Attainment'!$AH$19 -> 28 | E59: ='PO Attainment'!H78*'PO Attainment'!$AI$19 -> 10 | F59: 38
A60: ='List of Students'!A60 -> 51 | B60: ='PO Attainment'!B79 -> 1GV18EC022 | C60: ='PO Attainment'!C79 -> PAVITHRA. P | D60: =('PO Attainment'!E79+'PO Attainment'!F79+'PO Attainment'!G79)*'PO Attainment'!$AH$19 -> 34.4 | E60: ='PO Attainment'!H79*'PO Attainment'!$AI$19 -> 10 | F60: 44.4
A61: ='List of Students'!A61 -> 52 | B61: ='PO Attainment'!B80 -> 1GV18EC033 | C61: ='PO Attainment'!C80 -> SHREEJA R | D61: =('PO Attainment'!E80+'PO Attainment'!F80+'PO Attainment'!G80)*'PO Attainment'!$AH$19 -> 30.4 | E61: ='PO Attainment'!H80*'PO Attainment'!$AI$19 -> 10 | F61: 40.4
A62: ='List of Students'!A62 -> 53 | B62: ='PO Attainment'!B81 -> 1GV18EC035 | C62: ='PO Attainment'!C81 -> SIDDHITHA S | D62: =('PO Attainment'!E81+'PO Attainment'!F81+'PO Attainment'!G81)*'PO Attainment'!$AH$19 -> 28.8 | E62: ='PO Attainment'!H81*'PO Attainment'!$AI$19 -> 10 | F62: 38.8
A63: ='List of Students'!A63 -> 54 | B63: ='PO Attainment'!B82 -> 1GV17EC047 | C63: ='PO Attainment'!C82 -> TEJESASHWSI ONGOLE Y | D63: =('PO Attainment'!E82+'PO Attainment'!F82+'PO Attainment'!G82)*'PO Attainment'!$AH$19 -> 12 | E63: ='PO Attainment'!H82*'PO Attainment'!$AI$19 -> 10 | F63: 22
A64: ='List of Students'!A64 -> 55 | B64: ='PO Attainment'!B83 -> 1GV16EC038 | C64: ='PO Attainment'!C83 -> RACHANA K R | D64: =('PO Attainment'!E83+'PO Attainment'!F83+'PO Attainment'!G83)*'PO Attainment'!$AH$19 -> 12 | E64: ='PO Attainment'!H83*'PO Attainment'!$AI$19 -> 10 | F64: 22
A65: ='List of Students'!A65 -> 56 | B65: ='PO Attainment'!B84 -> 1GV20EC400 | C65: ='PO Attainment'!C84 -> ARUN KUMAR N | D65: =('PO Attainment'!E84+'PO Attainment'!F84+'PO Attainment'!G84)*'PO Attainment'!$AH$19 -> 0 | E65: ='PO Attainment'!H84*'PO Attainment'!$AI$19 -> 10 | F65: 10
A66: ='List of Students'!A66 -> 57 | B66: ='PO Attainment'!B85 -> 1GV20EC401 | C66: ='PO Attainment'!C85 -> BHUVANESH KUMAR U | D66: =('PO Attainment'!E85+'PO Attainment'!F85+'PO Attainment'!G85)*'PO Attainment'!$AH$19 -> 17.6 | E66: ='PO Attainment'!H85*'PO Attainment'!$AI$19 -> 10 | F66: 27.6
A67: ='List of Students'!A67 -> 58 | B67: ='PO Attainment'!B86 -> 1GV20EC402 | C67: ='PO Attainment'!C86 -> CHANDRALEKHA M | D67: =('PO Attainment'!E86+'PO Attainment'!F86+'PO Attainment'!G86)*'PO Attainment'!$AH$19 -> 27.2 | E67: ='PO Attainment'!H86*'PO Attainment'!$AI$19 -> 10 | F67: 37.2
A68: ='List of Students'!A68 -> 59 | B68: ='PO Attainment'!B87 -> 1GV20EC404 | C68: ='PO Attainment'!C87 -> VEDASHREE GM | D68: =('PO Attainment'!E87+'PO Attainment'!F87+'PO Attainment'!G87)*'PO Attainment'!$AH$19 -> 27.2 | E68: ='PO Attainment'!H87*'PO Attainment'!$AI$19 -> 10 | F68: 37.2
A69: ='List of Students'!A69 -> 60 | B69: ='PO Attainment'!B88 -> 1GV20EC405 | C69: ='PO Attainment'!C88 -> VIJAYKUMAR R | D69: =('PO Attainment'!E88+'PO Attainment'!F88+'PO Attainment'!G88)*'PO Attainment'!$AH$19 -> 20.8 | E69: ='PO Attainment'!H88*'PO Attainment'!$AI$19 -> 10 | F69: 30.8

Sheet T1A
A4: F.No:DrTTIT/IQAC/2020-21/066AP
A5: ="Department of " &'PO Attainment'!C6 &" Engineering" -> Department of Electronics & Communication Engineering
A6: Internal Examination Result Analysis
A7: Second Internal Test
C8: Date:
A9: Semester: | B9: ='PO Attainment'!C5 -> IV | C9: Academic Year: | D9: ='PO Attainment'!C8 -> 2020-21
A10: Course: | B10: ='PO Attainment'!C7 -> SIGNALS AND SYSTEMS | C10: Course Code: | D10: ='PO Attainment'!S7 -> 18EC45
A12: Sl.No.
A14: 1 | B14: Total No. of Students: | C14: ='PO Attainment'!S8 -> 60
A15: 2 | B15: No. of Students Absent:
A16: 3 | B16: No. of Students Appeared: | C16: ='PO Attainment'!S8-C15 -> 60
A17: 4 | B17: No. of Students Passed: | C17: ='T1'!J3 -> 58
A18: 5 | B18: No. of Students Failed: | C18: =C14-C17 -> 2
A19: 6 | B19: Percentage of Pass
A20: Based on Total Students: : | C20: =(C17/C14)*100 -> 96.66666667
A21: Based on Students Appeared: | C21: =(C17/C16)*100 -> 96.66666667
B23: Result Analysis
B24: Description | C24: Below 40% | D24: Above 75%
B26: No. of Students | C26: =C18 -> 2 | D26: ='T1'!K3 -> 50
A30: Course Instructor HOD
A46: ="Department of " &'PO Attainment'!C6 &" Engineering" -> Department of Electronics & Communication Engineering
A47: Internal Examination Result Analysis
A48: First Internal Test
C49: Date:
A50: Semester: | B50: =B9 -> IV | C50: Academic Year: | D50: =D9 -> 2020-21
A51: Course: | B51: =B10 -> SIGNALS AND SYSTEMS | C51: Course Code: | D51: =D10 -> 18EC45
A54: No. of Students | B54: No.of students failed | C54: No.of students passed | D54: No.of students scored above 75%
A56: =C14 -> 60 | B56: =C18 -> 2 | C56: =C17 -> 58 | D56: =D26 -> 50

Sheet CAR1
A4: F.No: DrTTIT/IQAC/2020-21/066BP
A8: ="Department of " &'PO Attainment'!C6 &" Engineering" -> Department of Electronics & Communication Engineering
A10: First Internal Test
A11: Corrective Action Report
A13: Semester: | C13: ='PO Attainment'!C5 -> IV | F13: Academic Year: | H13: ='PO Attainment'!C8 -> 2020-21
A14: Course: | C14: ='PO Attainment'!C7 -> SIGNALS AND SYSTEMS | F14: Course Code: | H14: ='PO Attainment'!S7 -> 18EC45
A16: Sl.No. | B16: Range of unit test marks % | D16: No of Students | E16: Actions taken to improve the performance | H16: Remarks
A17: 1 | B17: Below 40% | D17: =T1A!C26 -> 2
A18: 2 | B18: >75% | D18: =T1A!D26 -> 50
A22: Course Instructor | D22: HOD

Sheet T2
I3: ='PO Attainment'!S8 -> 60 | J3: =COUNTIF(F10:F69,">=15.5") -> 58 | K3: =COUNTIF(F10:F69,">30") -> 53
A4: F.No-DrTTIT/IQAC/2020-21/066IAP
A5: ="Department of " &'PO Attainment'!C6 &" Engineering" -> Department of Electronics & Communication Engineering
A6: Academic Year 2020-21
A7: Internal Test - IA2
A8: Sem | B8: ='PO Attainment'!C5 -> IV
A9: Sl.No | B9: USN | C9: Name of the Student | D9: IA Marks | E9: Assgn Marks | F9: Total marks
A10: ='PO Attainment'!A29 -> 1 | B10: ='PO Attainment'!B29 -> 1GV19EC002 | C10: ='PO Attainment'!C29 -> AKSHAYA K A | D10: =('PO Attainment'!I29+'PO Attainment'!J29+'PO Attainment'!K29)*'PO Attainment'!$AH$19 -> 33.6 | E10: ='PO Attainment'!L29*'PO Attainment'!$AI$19 -> 10 | F10: =D10+E10 -> 43.6
A11: ='PO Attainment'!A30 -> 2 | B11: ='PO Attainment'!B30 -> 1GV19EC003 | C11: ='PO Attainment'!C30 -> AVINASH BABU B | D11: =('PO Attainment'!I30+'PO Attainment'!J30+'PO Attainment'!K30)*'PO Attainment'!$AH$19 -> 28 | E11: ='PO Attainment'!L30*'PO Attainment'!$AI$19 -> 10 | F11: =D11+E11 -> 38
A12: ='PO Attainment'!A31 -> 3 | B12: ='PO Attainment'!B31 -> 1GV19EC005 | C12: ='PO Attainment'!C31 -> BHARATH KUMAR R | D12: =('PO Attainment'!I31+'PO Attainment'!J31+'PO Attainment'!K31)*'PO Attainment'!$AH$19 -> 22.4 | E12: ='PO Attainment'!L31*'PO Attainment'!$AI$19 -> 10 | F12: 32.4
A13: ='PO Attainment'!A32 -> 4 | B13: ='PO Attainment'!B32 -> 1GV19EC006 | C13: ='PO Attainment'!C32 -> BHARGAVI S | D13: =('PO Attainment'!I32+'PO Attainment'!J32+'PO Attainment'!K32)*'PO Attainment'!$AH$19 -> 35.2 | E13: ='PO Attainment'!L32*'PO Attainment'!$AI$19 -> 10 | F13: 45.2
A14: ='PO Attainment'!A33 -> 5 | B14: ='PO Attainment'!B33 -> 1GV19EC007 | C14: ='PO Attainment'!C33 -> CHAITHANYA K K V | D14: =('PO Attainment'!I33+'PO Attainment'!J33+'PO Attainment'!K33)*'PO Attainment'!$AH$19 -> 33.6 | E14: ='PO Attainment'!L33*'PO Attainment'!$AI$19 -> 10 | F14: 43.6
A15: ='PO Attainment'!A34 -> 6 | B15: ='PO Attainment'!B34 -> 1GV19EC008 | C15: ='PO Attainment'!C34 -> DEEPAK R | D15: =('PO Attainment'!I34+'PO Attainment'!J34+'PO Attainment'!K34)*'PO Attainment'!$AH$19 -> 28 | E15: ='PO Attainment'!L34*'PO Attainment'!$AI$19 -> 10 | F15: 38
A16: ='PO Attainment'!A35 -> 7 | B16: ='PO Attainment'!B35 -> 1GV19EC009 | C16: ='PO Attainment'!C35 -> DIVYA PRIYA G R | D16: =('PO Attainment'!I35+'PO Attainment'!J35+'PO Attainment'!K35)*'PO Attainment'!$AH$19 -> 37.6 | E16: ='PO Attainment'!L35*'PO Attainment'!$AI$19 -> 10 | F16: 47.6
A17: ='PO Attainment'!A36 -> 8 | B17: ='PO Attainment'!B36 -> 1GV19EC010 | C17: ='PO Attainment'!C36 -> DIVYA SWETHA J | D17: =('PO Attainment'!I36+'PO Attainment'!J36+'PO Attainment'!K36)*'PO Attainment'!$AH$19 -> 37.6 | E17: ='PO Attainment'!L36*'PO Attainment'!$AI$19 -> 10 | F17: 47.6
A18: ='PO Attainment'!A37 -> 9 | B18: ='PO Attainment'!B37 -> 1GV19EC011 | C18: ='PO Attainment'!C37 -> EVANGELIN P | D18: =('PO Attainment'!I37+'PO Attainment'!J37+'PO Attainment'!K37)*'PO Attainment'!$AH$19 -> 28 | E18: ='PO Attainment'!L37*'PO Attainment'!$AI$19 -> 10 | F18: 38
A19: ='PO Attainment'!A38 -> 10 | B19: ='PO Attainment'!B38 -> 1GV19EC012 | C19: ='PO Attainment'!C38 -> FARHEEN TAJ | D19: =('PO Attainment'!I38+'PO Attainment'!J38+'PO Attainment'!K38)*'PO Attainment'!$AH$19 -> 33.6 | E19: ='PO Attainment'!L38*'PO Attainment'!$AI$19 -> 10 | F19: 43.6
A20: ='PO Attainment'!A39 -> 11 | B20: ='PO Attainment'!B39 -> 1GV19EC014 | C20: ='PO Attainment'!C39 -> HARISHAKTHI N | D20: =('PO Attainment'!I39+'PO Attainment'!J39+'PO Attainment'!K39)*'PO Attainment'!$AH$19 -> 28 | E20: ='PO Attainment'!L39*'PO Attainment'!$AI$19 -> 10 | F20: 38
A21: ='PO Attainment'!A40 -> 12 | B21: ='PO Attainment'!B40 -> 1GV19EC015 | C21: ='PO Attainment'!C40 -> JAISHNAVI U | D21: =('PO Attainment'!I40+'PO Attainment'!J40+'PO Attainment'!K40)*'PO Attainment'!$AH$19 -> 28 | E21: ='PO Attainment'!L40*'PO Attainment'!$AI$19 -> 10 | F21: 38
A22: ='PO Attainment'!A41 -> 13 | B22: ='PO Attainment'!B41 -> 1GV19EC017 | C22: ='PO Attainment'!C41 -> KANISHA R | D22: =('PO Attainment'!I41+'PO Attainment'!J41+'PO Attainment'!K41)*'PO Attainment'!$AH$19 -> 32 | E22: ='PO Attainment'!L41*'PO Attainment'!$AI$19 -> 10 | F22: 42
A23: ='PO Attainment'!A42 -> 14 | B23: ='PO Attainment'!B42 -> 1GV19EC018 | C23: ='PO Attainment'!C42 -> KAVYA RAJ | D23: =('PO Attainment'!I42+'PO Attainment'!J42+'PO Attainment'!K42)*'PO Attainment'!$AH$19 -> 32 | E23: ='PO Attainment'!L42*'PO Attainment'!$AI$19 -> 10 | F23: 42
A24: ='PO Attainment'!A43 -> 15 | B24: ='PO Attainment'!B43 -> 1GV19EC019 | C24: ='PO Attainment'!C43 -> KEERTHANA B S | D24: =('PO Attainment'!I43+'PO Attainment'!J43+'PO Attainment'!K43)*'PO Attainment'!$AH$19 -> 32 | E24: ='PO Attainment'!L43*'PO Attainment'!$AI$19 -> 10 | F24: 42
A25: ='PO Attainment'!A44 -> 16 | B25: ='PO Attainment'!B44 -> 1GV19EC020 | C25: ='PO Attainment'!C44 -> KRITHIKA A | D25: =('PO Attainment'!I44+'PO Attainment'!J44+'PO Attainment'!K44)*'PO Attainment'!$AH$19 -> 24 | E25: ='PO Attainment'!L44*'PO Attainment'!$AI$19 -> 10 | F25: 34
A26: ='PO Attainment'!A45 -> 17 | B26: ='PO Attainment'!B45 -> 1GV19EC021 | C26: ='PO Attainment'!C45 -> LEEKATH UNNISSA A | D26: =('PO Attainment'!I45+'PO Attainment'!J45+'PO Attainment'!K45)*'PO Attainment'!$AH$19 -> 35.2 | E26: ='PO Attainment'!L45*'PO Attainment'!$AI$19 -> 10 | F26: 45.2
A27: ='PO Attainment'!A46 -> 18 | B27: ='PO Attainment'!B46 -> 1GV19EC022 | C27: ='PO Attainment'!C46 -> MAHALAKSHMI S | D27: =('PO Attainment'!I46+'PO Attainment'!J46+'PO Attainment'!K46)*'PO Attainment'!$AH$19 -> 37.6 | E27: ='PO Attainment'!L46*'PO Attainment'!$AI$19 -> 10 | F27: 47.6
A28: ='PO Attainment'!A47 -> 19 | B28: ='PO Attainment'!B47 -> 1GV19EC023 | C28: ='PO Attainment'!C47 -> MARY VINISHA B | D28: =('PO Attainment'!I47+'PO Attainment'!J47+'PO Attainment'!K47)*'PO Attainment'!$AH$19 -> 33.6 | E28: ='PO Attainment'!L47*'PO Attainment'!$AI$19 -> 10 | F28: 43.6
A29: ='PO Attainment'!A48 -> 20 | B29: ='PO Attainment'!B48 -> 1GV19EC024 | C29: ='PO Attainment'!C48 -> MOHAMMED IRFAN | D29: =('PO Attainment'!I48+'PO Attainment'!J48+'PO Attainment'!K48)*'PO Attainment'!$AH$19 -> 33.6 | E29: ='PO Attainment'!L48*'PO Attainment'!$AI$19 -> 10 | F29: 43.6
A30: ='PO Attainment'!A49 -> 21 | B30: ='PO Attainment'!B49 -> 1GV19EC026 | C30: ='PO Attainment'!C49 -> MOHAN C R | D30: =('PO Attainment'!I49+'PO Attainment'!J49+'PO Attainment'!K49)*'PO Attainment'!$AH$19 -> 32 | E30: ='PO Attainment'!L49*'PO Attainment'!$AI$19 -> 10 | F30: 42
A31: ='PO Attainment'!A50 -> 22 | B31: ='PO Attainment'!B50 -> 1GV19EC027 | C31: ='PO Attainment'!C50 -> MOUNIKA V | D31: =('PO Attainment'!I50+'PO Attainment'!J50+'PO Attainment'!K50)*'PO Attainment'!$AH$19 -> 33.6 | E31: ='PO Attainment'!L50*'PO Attainment'!$AI$19 -> 10 | F31: 43.6
A32: ='PO Attainment'!A51 -> 23 | B32: ='PO Attainment'!B51 -> 1GV19EC028 | C32: ='PO Attainment'!C51 -> MOUNISHA N N | D32: =('PO Attainment'!I51+'PO Attainment'!J51+'PO Attainment'!K51)*'PO Attainment'!$AH$19 -> 33.6 | E32: ='PO Attainment'!L51*'PO Attainment'!$AI$19 -> 10 | F32: 43.6
A33: ='PO Attainment'!A52 -> 24 | B33: ='PO Attainment'!B52 -> 1GV19EC029 | C33: ='PO Attainment'!C52 -> NOMESHWAR V | D33: =('PO Attainment'!I52+'PO Attainment'!J52+'PO Attainment'!K52)*'PO Attainment'!$AH$19 -> 32 | E33: ='PO Attainment'!L52*'PO Attainment'!$AI$19 -> 10 | F33: 42
A34: ='PO Attainment'!A53 -> 25 | B34: ='PO Attainment'!B53 -> 1GV19EC030 | C34: ='PO Attainment'!C53 -> POOJA G V | D34: =('PO Attainment'!I53+'PO Attainment'!J53+'PO Attainment'!K53)*'PO Attainment'!$AH$19 -> 32 | E34: ='PO Attainment'!L53*'PO Attainment'!$AI$19 -> 10 | F34: 42
A35: ='PO Attainment'!A54 -> 26 | B35: ='PO Attainment'!B54 -> 1GV19EC033 | C35: ='PO Attainment'!C54 -> RISHIKA R | D35: =('PO Attainment'!I54+'PO Attainment'!J54+'PO Attainment'!K54)*'PO Attainment'!$AH$19 -> 0 | E35: ='PO Attainment'!L54*'PO Attainment'!$AI$19 -> 10 | F35: 10
A36: ='PO Attainment'!A55 -> 27 | B36: ='PO Attainment'!B55 -> 1GV19EC034 | C36: ='PO Attainment'!C55 -> SAFNA FIRDOUS E K | D36: =('PO Attainment'!I55+'PO Attainment'!J55+'PO Attainment'!K55)*'PO Attainment'!$AH$19 -> 33.6 | E36: ='PO Attainment'!L55*'PO Attainment'!$AI$19 -> 10 | F36: 43.6
A37: ='PO Attainment'!A56 -> 28 | B37: ='PO Attainment'!B56 -> 1GV19EC035 | C37: ='PO Attainment'!C56 -> SAHANA K | D37: =('PO Attainment'!I56+'PO Attainment'!J56+'PO Attainment'!K56)*'PO Attainment'!$AH$19 -> 35.2 | E37: ='PO Attainment'!L56*'PO Attainment'!$AI$19 -> 10 | F37: 45.2
A38: ='PO Attainment'!A57 -> 29 | B38: ='PO Attainment'!B57 -> 1GV19EC036 | C38: ='PO Attainment'!C57 -> SAIMANIMALA S | D38: =('PO Attainment'!I57+'PO Attainment'!J57+'PO Attainment'!K57)*'PO Attainment'!$AH$19 -> 35.2 | E38: ='PO Attainment'!L57*'PO Attainment'!$AI$19 -> 10 | F38: 45.2
A39: ='PO Attainment'!A58 -> 30 | B39: ='PO Attainment'!B58 -> 1GV19EC037 | C39: ='PO Attainment'!C58 -> SAKTHI RAGAVAN | D39: =('PO Attainment'!I58+'PO Attainment'!J58+'PO Attainment'!K58)*'PO Attainment'!$AH$19 -> 35.2 | E39: ='PO Attainment'!L58*'PO Attainment'!$AI$19 -> 10 | F39: 45.2
A40: ='PO Attainment'!A59 -> 31 | B40: ='PO Attainment'!B59 -> 1GV19EC039 | C40: ='PO Attainment'!C59 -> SHARMILA A | D40: =('PO Attainment'!I59+'PO Attainment'!J59+'PO Attainment'!K59)*'PO Attainment'!$AH$19 -> 32 | E40: ='PO Attainment'!L59*'PO Attainment'!$AI$19 -> 10 | F40: 42
A41: ='PO Attainment'!A60 -> 32 | B41: ='PO Attainment'!B60 -> 1GV19EC040 | C41: ='PO Attainment'!C60 -> SHYAM KUMAR P | D41: =('PO Attainment'!I60+'PO Attainment'!J60+'PO Attainment'!K60)*'PO Attainment'!$AH$19 -> 24 | E41: ='PO Attainment'!L60*'PO Attainment'!$AI$19 -> 10 | F41: 34
A42: ='PO Attainment'!A61 -> 33 | B42: ='PO Attainment'!B61 -> 1GV19EC041 | C42: ='PO Attainment'!C61 -> SNEHA N | D42: =('PO Attainment'!I61+'PO Attainment'!J61+'PO Attainment'!K61)*'PO Attainment'!$AH$19 -> 32 | E42: ='PO Attainment'!L61*'PO Attainment'!$AI$19 -> 10 | F42: 42
A43: ='PO Attainment'!A62 -> 34 | B43: ='PO Attainment'!B62 -> 1GV19EC042 | C43: ='PO Attainment'!C62 -> SNEHA S | D43: =('PO Attainment'!I62+'PO Attainment'!J62+'PO Attainment'!K62)*'PO Attainment'!$AH$19 -> 33.6 | E43: ='PO Attainment'!L62*'PO Attainment'!$AI$19 -> 10 | F43: 43.6
A44: ='PO Attainment'!A63 -> 35 | B44: ='PO Attainment'!B63 -> 1GV19EC043 | C44: ='PO Attainment'!C63 -> SOUJANYA D | D44: =('PO Attainment'!I63+'PO Attainment'!J63+'PO Attainment'!K63)*'PO Attainment'!$AH$19 -> 36.8 | E44: ='PO Attainment'!L63*'PO Attainment'!$AI$19 -> 10 | F44: 46.8
A45: ='PO Attainment'!A64 -> 36 | B45: ='PO Attainment'!B64 -> 1GV19EC044 | C45: ='PO Attainment'!C64 -> SOWMIYA J | D45: =('PO Attainment'!I64+'PO Attainment'!J64+'PO Attainment'!K64)*'PO Attainment'!$AH$19 -> 36.8 | E45: ='PO Attainment'!L64*'PO Attainment'!$AI$19 -> 10 | F45: 46.8
A46: ='PO Attainment'!A65 -> 37 | B46: ='PO Attainment'!B65 -> 1GV19EC045 | C46: ='PO Attainment'!C65 -> SUJITHA S | D46: =('PO Attainment'!I65+'PO Attainment'!J65+'PO Attainment'!K65)*'PO Attainment'!$AH$19 -> 37.6 | E46: ='PO Attainment'!L65*'PO Attainment'!$AI$19 -> 10 | F46: 47.6
A47: ='PO Attainment'!A66 -> 38 | B47: ='PO Attainment'!B66 -> 1GV19EC046 | C47: ='PO Attainment'!C66 -> SUMITH R | D47: =('PO Attainment'!I66+'PO Attainment'!J66+'PO Attainment'!K66)*'PO Attainment'!$AH$19 -> 33.6 | E47: ='PO Attainment'!L66*'PO Attainment'!$AI$19 -> 10 | F47: 43.6
A48: ='PO Attainment'!A67 -> 39 | B48: ='PO Attainment'!B67 -> 1GV19EC047 | C48: ='PO Attainment'!C67 -> SURYA H G | D48: =('PO Attainment'!I67+'PO Attainment'!J67+'PO Attainment'!K67)*'PO Attainment'!$AH$19 -> 18.4 | E48: ='PO Attainment'!L67*'PO Attainment'!$AI$19 -> 10 | F48: 28.4
A49: ='PO Attainment'!A68 -> 40 | B49: ='PO Attainment'!B68 -> 1GV19EC048 | C49: ='PO Attainment'!C68 -> SWETHA T | D49: =('PO Attainment'!I68+'PO Attainment'!J68+'PO Attainment'!K68)*'PO Attainment'!$AH$19 -> 32 | E49: ='PO Attainment'!L68*'PO Attainment'!$AI$19 -> 10 | F49: 42
A50: ='PO Attainment'!A69 -> 41 | B50: ='PO Attainment'!B69 -> 1GV19EC049 | C50: ='PO Attainment'!C69 -> SYED ASHWAQ AHMED M | D50: =('PO Attainment'!I69+'PO Attainment'!J69+'PO Attainment'!K69)*'PO Attainment'!$AH$19 -> 32 | E50: ='PO Attainment'!L69*'PO Attainment'!$AI$19 -> 10 | F50: 42
A51: ='PO Attainment'!A70 -> 42 | B51: ='PO Attainment'!B70 -> 1GV19EC050 | C51: ='PO Attainment'!C70 -> TRIBHUVAN S R | D51: =('PO Attainment'!I70+'PO Attainment'!J70+'PO Attainment'!K70)*'PO Attainment'!$AH$19 -> 32 | E51: ='PO Attainment'!L70*'PO Attainment'!$AI$19 -> 10 | F51: 42
A52: ='PO Attainment'!A71 -> 43 | B52: ='PO Attainment'!B71 -> 1GV19EC051 | C52: ='PO Attainment'!C71 -> VANDANA K | D52: =('PO Attainment'!I71+'PO Attainment'!J71+'PO Attainment'!K71)*'PO Attainment'!$AH$19 -> 33.6 | E52: ='PO Attainment'!L71*'PO Attainment'!$AI$19 -> 10 | F52: 43.6
A53: ='PO Attainment'!A72 -> 44 | B53: ='PO Attainment'!B72 -> 1GV19EC052 | C53: ='PO Attainment'!C72 -> VARADARAJU D | D53: =('PO Attainment'!I72+'PO Attainment'!J72+'PO Attainment'!K72)*'PO Attainment'!$AH$19 -> 28 | E53: ='PO Attainment'!L72*'PO Attainment'!$AI$19 -> 10 | F53: 38
A54: ='PO Attainment'!A73 -> 45 | B54: ='PO Attainment'!B73 -> 1GV19EC053 | C54: ='PO Attainment'!C73 -> VIDHYA G N | D54: =('PO Attainment'!I73+'PO Attainment'!J73+'PO Attainment'!K73)*'PO Attainment'!$AH$19 -> 33.6 | E54: ='PO Attainment'!L73*'PO Attainment'!$AI$19 -> 10 | F54: 43.6
A55: ='PO Attainment'!A74 -> 46 | B55: ='PO Attainment'!B74 -> 1GV19EC054 | C55: ='PO Attainment'!C74 -> VIDYA M | D55: =('PO Attainment'!I74+'PO Attainment'!J74+'PO Attainment'!K74)*'PO Attainment'!$AH$19 -> 32 | E55: ='PO Attainment'!L74*'PO Attainment'!$AI$19 -> 10 | F55: 42
A56: ='PO Attainment'!A75 -> 47 | B56: ='PO Attainment'!B75 -> 1GV19EC057 | C56: ='PO Attainment'!C75 -> GRITA A | D56: =('PO Attainment'!I75+'PO Attainment'!J75+'PO Attainment'!K75)*'PO Attainment'!$AH$19 -> 37.6 | E56: ='PO Attainment'!L75*'PO Attainment'!$AI$19 -> 10 | F56: 47.6
A57: ='PO Attainment'!A76 -> 48 | B57: ='PO Attainment'!B76 -> 1GV19EC058 | C57: ='PO Attainment'!C76 -> TABREZ AHMED N | D57: =('PO Attainment'!I76+'PO Attainment'!J76+'PO Attainment'!K76)*'PO Attainment'!$AH$19 -> 12 | E57: ='PO Attainment'!L76*'PO Attainment'!$AI$19 -> 10 | F57: 22
A58: ='PO Attainment'!A77 -> 49 | B58: ='PO Attainment'!B77 -> 1GV18EC012 | C58: ='PO Attainment'!C77 -> KENNETH BENNY J | D58: =('PO Attainment'!I77+'PO Attainment'!J77+'PO Attainment'!K77)*'PO Attainment'!$AH$19 -> 32 | E58: ='PO Attainment'!L77*'PO Attainment'!$AI$19 -> 10 | F58: 42
A59: ='PO Attainment'!A78 -> 50 | B59: ='PO Attainment'!B78 -> 1GV18EC013 | C59: ='PO Attainment'!C78 -> KEZIA R | D59: =('PO Attainment'!I78+'PO Attainment'!J78+'PO Attainment'!K78)*'PO Attainment'!$AH$19 -> 33.6 | E59: ='PO Attainment'!L78*'PO Attainment'!$AI$19 -> 10 | F59: 43.6
A60: ='PO Attainment'!A79 -> 51 | B60: ='PO Attainment'!B79 -> 1GV18EC022 | C60: ='PO Attainment'!C79 -> PAVITHRA. P | D60: =('PO Attainment'!I79+'PO Attainment'!J79+'PO Attainment'!K79)*'PO Attainment'!$AH$19 -> 19.2 | E60: ='PO Attainment'!L79*'PO Attainment'!$AI$19 -> 10 | F60: 29.2
A61: ='PO Attainment'!A80 -> 52 | B61: ='PO Attainment'!B80 -> 1GV18EC033 | C61: ='PO Attainment'!C80 -> SHREEJA R | D61: =('PO Attainment'!I80+'PO Attainment'!J80+'PO Attainment'!K80)*'PO Attainment'!$AH$19 -> 33.6 | E61: ='PO Attainment'!L80*'PO Attainment'!$AI$19 -> 10 | F61: 43.6
A62: ='PO Attainment'!A81 -> 53 | B62: ='PO Attainment'!B81 -> 1GV18EC035 | C62: ='PO Attainment'!C81 -> SIDDHITHA S | D62: =('PO Attainment'!I81+'PO Attainment'!J81+'PO Attainment'!K81)*'PO Attainment'!$AH$19 -> 33.6 | E62: ='PO Attainment'!L81*'PO Attainment'!$AI$19 -> 10 | F62: 43.6
A63: ='PO Attainment'!A82 -> 54 | B63: ='PO Attainment'!B82 -> 1GV17EC047 | C63: ='PO Attainment'!C82 -> TEJESASHWSI ONGOLE Y | D63: =('PO Attainment'!I82+'PO Attainment'!J82+'PO Attainment'!K82)*'PO Attainment'!$AH$19 -> 16 | E63: ='PO Attainment'!L82*'PO Attainment'!$AI$19 -> 10 | F63: 26
A64: ='PO Attainment'!A83 -> 55 | B64: ='PO Attainment'!B83 -> 1GV16EC038 | C64: ='PO Attainment'!C83 -> RACHANA K R | D64: =('PO Attainment'!I83+'PO Attainment'!J83+'PO Attainment'!K83)*'PO Attainment'!$AH$19 -> 18.4 | E64: ='PO Attainment'!L83*'PO Attainment'!$AI$19 -> 10 | F64: 28.4
A65: ='PO Attainment'!A84 -> 56 | B65: ='PO Attainment'!B84 -> 1GV20EC400 | C65: ='PO Attainment'!C84 -> ARUN KUMAR N | D65: =('PO Attainment'!I84+'PO Attainment'!J84+'PO Attainment'!K84)*'PO Attainment'!$AH$19 -> 0 | E65: ='PO Attainment'!L84*'PO Attainment'!$AI$19 -> 10 | F65: 10
A66: ='PO Attainment'!A85 -> 57 | B66: ='PO Attainment'!B85 -> 1GV20EC401 | C66: ='PO Attainment'!C85 -> BHUVANESH KUMAR U | D66: =('PO Attainment'!I85+'PO Attainment'!J85+'PO Attainment'!K85)*'PO Attainment'!$AH$19 -> 28 | E66: ='PO Attainment'!L85*'PO Attainment'!$AI$19 -> 10 | F66: 38
A67: ='PO Attainment'!A86 -> 58 | B67: ='PO Attainment'!B86 -> 1GV20EC402 | C67: ='PO Attainment'!C86 -> CHANDRALEKHA M | D67: =('PO Attainment'!I86+'PO Attainment'!J86+'PO Attainment'!K86)*'PO Attainment'!$AH$19 -> 33.6 | E67: ='PO Attainment'!L86*'PO Attainment'!$AI$19 -> 10 | F67: 43.6
A68: ='PO Attainment'!A87 -> 59 | B68: ='PO Attainment'!B87 -> 1GV20EC404 | C68: ='PO Attainment'!C87 -> VEDASHREE GM | D68: =('PO Attainment'!I87+'PO Attainment'!J87+'PO Attainment'!K87)*'PO Attainment'!$AH$19 -> 35.2 | E68: ='PO Attainment'!L87*'PO Attainment'!$AI$19 -> 10 | F68: 45.2
A69: ='PO Attainment'!A88 -> 60 | B69: ='PO Attainment'!B88 -> 1GV20EC405 | C69: ='PO Attainment'!C88 -> VIJAYKUMAR R | D69: =('PO Attainment'!I88+'PO Attainment'!J88+'PO Attainment'!K88)*'PO Attainment'!$AH$19 -> 24 | E69: ='PO Attainment'!L88*'PO Attainment'!$AI$19 -> 10 | F69: 34
A71: Course Instructor

Sheet T2A
A4: F.No:DrTTIT/IQAC/2020-21/066AP
A5: ="Department of " &'PO Attainment'!C6 &" Engineering" -> Department of Electronics & Communication Engineering
A6: Internal Examination Result Analysis
A7: Second Internal Test
C8: Date:
A9: Semester: | B9: ='PO Attainment'!C5 -> IV | C9: Academic Year: | D9: ='PO Attainment'!C8 -> 2020-21
A10: Course: | B10: ='PO Attainment'!C7 -> SIGNALS AND SYSTEMS | C10: Course Code: | D10: ='PO Attainment'!S7 -> 18EC45
A12: Sl.No
A14: 1 | B14: Total No. of Students: | C14: ='PO Attainment'!S8 -> 60
A15: 2 | B15: No. of Students Absent:
A16: 3 | B16: No. of Students Appeared: | C16: ='PO Attainment'!S8-C15 -> 60
A17: 4 | B17: No. of Students Passed: | C17: ='T2'!J3 -> 58
A18: 5 | B18: No. of Students Failed: | C18: =C14-C17 -> 2
A19: 6 | B19: Percentage of Pass
A20: Based on Total Students: : | C20: =(C17/C14)*100 -> 96.66666667
A21: Based on Students Appeared: | C21: =(C17/C16)*100 -> 96.66666667
B23: Result Analysis
B24: Description | C24: Below 40% | D24: Above 75%
B26: No. of Students | C26: =C18 -> 2 | D26: ='T2'!K3 -> 53
A30: Course Instructor HOD
A46: ="Department of " &'PO Attainment'!C6 &" Engineering" -> Department of Electronics & Communication Engineering
A47: Internal Examination Result Analysis
A48: Second Internal Test
C49: Date:
A50: Semester: | B50: =B9 -> IV | C50: Academic Year: | D50: =D9 -> 2020-21
A51: Course: | B51: =B10 -> SIGNALS AND SYSTEMS | C51: Course Code: | D51: =D10 -> 18EC45
A54: No. of Students | B54: No.of students failed | C54: No.of students passed | D54: No.of students scored above 75%
A56: =C14 -> 60 | B56: =C18 -> 2 | C56: =C17 -> 58 | D56: =D26 -> 53

Sheet CAR2
A4: F.No: DrTTIT/IQAC/2020-21/066BP
A8: ="Department of " &'PO Attainment'!C6 &" Engineering" -> Department of Electronics & Communication Engineering
A10: Second Internal Test
A11: Corrective Action Report
A13: Semester: | C13: ='PO Attainment'!C5 -> IV | F13: Academic Year: | H13: ='PO Attainment'!C8 -> 2020-21
A14: Course: | C14: ='PO Attainment'!C7 -> SIGNALS AND SYSTEMS | F14: Course Code: | H14: ='PO Attainment'!S7 -> 18EC45
A16: Sl.No. | B16: Range of unit test marks % | D16: No of Students | E16: Actions taken to improve the performance | H16: Remarks
A17: 1 | B17: Below 40% | D17: ='T2A '!C26 -> 2
A18: 2 | B18: >75% | D18: ='T2A '!D26 -> 53
A22: Course Instructor | D22: HOD

Sheet T3
I3: ='PO Attainment'!S8 -> 60 | J3: =COUNTIF(F10:F69,">=15.5") -> 53 | K3: =COUNTIF(F10:F69,">30") -> 31
A4: F.No-DrTTIT/IQAC/2020-21/066IAP
A5: ="Department of " &'PO Attainment'!C6 &" Engineering" -> Department of Electronics & Communication Engineering
A6: Academic Year 2020-21
A7: Internal Test - IA3
A8: Sem | B8: ='PO Attainment'!C5 -> IV
A9: Sl.No | B9: USN | C9: Name of the Student | D9: IA Marks | E9: Assgn Marks | F9: Total marks
A10: ='PO Attainment'!A29 -> 1 | B10: ='PO Attainment'!B29 -> 1GV19EC002 | C10: ='PO Attainment'!C29 -> AKSHAYA K A | D10: =('PO Attainment'!M29+'PO Attainment'!N29+'PO Attainment'!O29)*'PO Attainment'!$AH$19 -> 27.2 | E10: ='PO Attainment'!P29*'PO Attainment'!$AI$19 -> 10 | F10: =D10+E10 -> 37.2
A11: ='PO Attainment'!A30 -> 2 | B11: ='PO Attainment'!B30 -> 1GV19EC003 | C11: ='PO Attainment'!C30 -> AVINASH BABU B | D11: =('PO Attainment'!M30+'PO Attainment'!N30+'PO Attainment'!O30)*'PO Attainment'!$AH$19 -> 6.4 | E11: ='PO Attainment'!P30*'PO Attainment'!$AI$19 -> 10 | F11: =D11+E11 -> 16.4
A12: ='PO Attainment'!A31 -> 3 | B12: ='PO Attainment'!B31 -> 1GV19EC005 | C12: ='PO Attainment'!C31 -> BHARATH KUMAR R | D12: =('PO Attainment'!M31+'PO Attainment'!N31+'PO Attainment'!O31)*'PO Attainment'!$AH$19 -> 4.8 | E12: ='PO Attainment'!P31*'PO Attainment'!$AI$19 -> 10 | F12: 14.8
A13: ='PO Attainment'!A32 -> 4 | B13: ='PO Attainment'!B32 -> 1GV19EC006 | C13: ='PO Attainment'!C32 -> BHARGAVI S | D13: =('PO Attainment'!M32+'PO Attainment'!N32+'PO Attainment'!O32)*'PO Attainment'!$AH$19 -> 36 | E13: ='PO Attainment'!P32*'PO Attainment'!$AI$19 -> 10 | F13: 46
A14: ='PO Attainment'!A33 -> 5 | B14: ='PO Attainment'!B33 -> 1GV19EC007 | C14: ='PO Attainment'!C33 -> CHAITHANYA K K V | D14: =('PO Attainment'!M33+'PO Attainment'!N33+'PO Attainment'!O33)*'PO Attainment'!$AH$19 -> 9.6 | E14: ='PO Attainment'!P33*'PO Attainment'!$AI$19 -> 10 | F14: 19.6
A15: ='PO Attainment'!A34 -> 6 | B15: ='PO Attainment'!B34 -> 1GV19EC008 | C15: ='PO Attainment'!C34 -> DEEPAK R | D15: =('PO Attainment'!M34+'PO Attainment'!N34+'PO Attainment'!O34)*'PO Attainment'!$AH$19 -> 20 | E15: ='PO Attainment'!P34*'PO Attainment'!$AI$19 -> 10 | F15: 30
A16: ='PO Attainment'!A35 -> 7 | B16: ='PO Attainment'!B35 -> 1GV19EC009 | C16: ='PO Attainment'!C35 -> DIVYA PRIYA G R | D16: =('PO Attainment'!M35+'PO Attainment'!N35+'PO Attainment'!O35)*'PO Attainment'!$AH$19 -> 35.2 | E16: ='PO Attainment'!P35*'PO Attainment'!$AI$19 -> 10 | F16: 45.2
A17: ='PO Attainment'!A36 -> 8 | B17: ='PO Attainment'!B36 -> 1GV19EC010 | C17: ='PO Attainment'!C36 -> DIVYA SWETHA J | D17: =('PO Attainment'!M36+'PO Attainment'!N36+'PO Attainment'!O36)*'PO Attainment'!$AH$19 -> 35.2 | E17: ='PO Attainment'!P36*'PO Attainment'!$AI$19 -> 10 | F17: 45.2
A18: ='PO Attainment'!A37 -> 9 | B18: ='PO Attainment'!B37 -> 1GV19EC011 | C18: ='PO Attainment'!C37 -> EVANGELIN P | D18: =('PO Attainment'!M37+'PO Attainment'!N37+'PO Attainment'!O37)*'PO Attainment'!$AH$19 -> 20 | E18: ='PO Attainment'!P37*'PO Attainment'!$AI$19 -> 10 | F18: 30
A19: ='PO Attainment'!A38 -> 10 | B19: ='PO Attainment'!B38 -> 1GV19EC012 | C19: ='PO Attainment'!C38 -> FARHEEN TAJ | D19: =('PO Attainment'!M38+'PO Attainment'!N38+'PO Attainment'!O38)*'PO Attainment'!$AH$19 -> 36 | E19: ='PO Attainment'!P38*'PO Attainment'!$AI$19 -> 10 | F19: 46
A20: ='PO Attainment'!A39 -> 11 | B20: ='PO Attainment'!B39 -> 1GV19EC014 | C20: ='PO Attainment'!C39 -> HARISHAKTHI N | D20: =('PO Attainment'!M39+'PO Attainment'!N39+'PO Attainment'!O39)*'PO Attainment'!$AH$19 -> 18.4 | E20: ='PO Attainment'!P39*'PO Attainment'!$AI$19 -> 10 | F20: 28.4
A21: ='PO Attainment'!A40 -> 12 | B21: ='PO Attainment'!B40 -> 1GV19EC015 | C21: ='PO Attainment'!C40 -> JAISHNAVI U | D21: =('PO Attainment'!M40+'PO Attainment'!N40+'PO Attainment'!O40)*'PO Attainment'!$AH$19 -> 25.6 | E21: ='PO Attainment'!P40*'PO Attainment'!$AI$19 -> 10 | F21: 35.6
A22: ='PO Attainment'!A41 -> 13 | B22: ='PO Attainment'!B41 -> 1GV19EC017 | C22: ='PO Attainment'!C41 -> KANISHA R | D22: =('PO Attainment'!M41+'PO Attainment'!N41+'PO Attainment'!O41)*'PO Attainment'!$AH$19 -> 34.4 | E22: ='PO Attainment'!P41*'PO Attainment'!$AI$19 -> 10 | F22: 44.4
A23: ='PO Attainment'!A42 -> 14 | B23: ='PO Attainment'!B42 -> 1GV19EC018 | C23: ='PO Attainment'!C42 -> KAVYA RAJ | D23: =('PO Attainment'!M42+'PO Attainment'!N42+'PO Attainment'!O42)*'PO Attainment'!$AH$19 -> 27.2 | E23: ='PO Attainment'!P42*'PO Attainment'!$AI$19 -> 10 | F23: 37.2
A24: ='PO Attainment'!A43 -> 15 | B24: ='PO Attainment'!B43 -> 1GV19EC019 | C24: ='PO Attainment'!C43 -> KEERTHANA B S | D24: =('PO Attainment'!M43+'PO Attainment'!N43+'PO Attainment'!O43)*'PO Attainment'!$AH$19 -> 25.6 | E24: ='PO Attainment'!P43*'PO Attainment'!$AI$19 -> 10 | F24: 35.6
A25: ='PO Attainment'!A44 -> 16 | B25: ='PO Attainment'!B44 -> 1GV19EC020 | C25: ='PO Attainment'!C44 -> KRITHIKA A | D25: =('PO Attainment'!M44+'PO Attainment'!N44+'PO Attainment'!O44)*'PO Attainment'!$AH$19 -> 12.8 | E25: ='PO Attainment'!P44*'PO Attainment'!$AI$19 -> 10 | F25: 22.8
A26: ='PO Attainment'!A45 -> 17 | B26: ='PO Attainment'!B45 -> 1GV19EC021 | C26: ='PO Attainment'!C45 -> LEEKATH UNNISSA A | D26: =('PO Attainment'!M45+'PO Attainment'!N45+'PO Attainment'!O45)*'PO Attainment'!$AH$19 -> 38.4 | E26: ='PO Attainment'!P45*'PO Attainment'!$AI$19 -> 10 | F26: 48.4
A27: ='PO Attainment'!A46 -> 18 | B27: ='PO Attainment'!B46 -> 1GV19EC022 | C27: ='PO Attainment'!C46 -> MAHALAKSHMI S | D27: =('PO Attainment'!M46+'PO Attainment'!N46+'PO Attainment'!O46)*'PO Attainment'!$AH$19 -> 35.2 | E27: ='PO Attainment'!P46*'PO Attainment'!$AI$19 -> 10 | F27: 45.2
A28: ='PO Attainment'!A47 -> 19 | B28: ='PO Attainment'!B47 -> 1GV19EC023 | C28: ='PO Attainment'!C47 -> MARY VINISHA B | D28: =('PO Attainment'!M47+'PO Attainment'!N47+'PO Attainment'!O47)*'PO Attainment'!$AH$19 -> 36 | E28: ='PO Attainment'!P47*'PO Attainment'!$AI$19 -> 10 | F28: 46
A29: ='PO Attainment'!A48 -> 20 | B29: ='PO Attainment'!B48 -> 1GV19EC024 | C29: ='PO Attainment'!C48 -> MOHAMMED IRFAN | D29: =('PO Attainment'!M48+'PO Attainment'!N48+'PO Attainment'!O48)*'PO Attainment'!$AH$19 -> 27.2 | E29: ='PO Attainment'!P48*'PO Attainment'!$AI$19 -> 10 | F29: 37.2
A30: ='PO Attainment'!A49 -> 21 | B30: ='PO Attainment'!B49 -> 1GV19EC026 | C30: ='PO Attainment'!C49 -> MOHAN C R | D30: =('PO Attainment'!M49+'PO Attainment'!N49+'PO Attainment'!O49)*'PO Attainment'!$AH$19 -> 0 | E30: ='PO Attainment'!P49*'PO Attainment'!$AI$19 -> 10 | F30: 10
A31: ='PO Attainment'!A50 -> 22 | B31: ='PO Attainment'!B50 -> 1GV19EC027 | C31: ='PO Attainment'!C50 -> MOUNIKA V | D31: =('PO Attainment'!M50+'PO Attainment'!N50+'PO Attainment'!O50)*'PO Attainment'!$AH$19 -> 32 | E31: ='PO Attainment'!P50*'PO Attainment'!$AI$19 -> 10 | F31: 42
A32: ='PO Attainment'!A51 -> 23 | B32: ='PO Attainment'!B51 -> 1GV19EC028 | C32: ='PO Attainment'!C51 -> MOUNISHA N N | D32: =('PO Attainment'!M51+'PO Attainment'!N51+'PO Attainment'!O51)*'PO Attainment'!$AH$19 -> 32.8 | E32: ='PO Attainment'!P51*'PO Attainment'!$AI$19 -> 10 | F32: 42.8
A33: ='PO Attainment'!A52 -> 24 | B33: ='PO Attainment'!B52 -> 1GV19EC029 | C33: ='PO Attainment'!C52 -> NOMESHWAR V | D33: =('PO Attainment'!M52+'PO Attainment'!N52+'PO Attainment'!O52)*'PO Attainment'!$AH$19 -> 38.4 | E33: ='PO Attainment'!P52*'PO Attainment'!$AI$19 -> 10 | F33: 48.4
A34: ='PO Attainment'!A53 -> 25 | B34: ='PO Attainment'!B53 -> 1GV19EC030 | C34: ='PO Attainment'!C53 -> POOJA G V | D34: =('PO Attainment'!M53+'PO Attainment'!N53+'PO Attainment'!O53)*'PO Attainment'!$AH$19 -> 24.8 | E34: ='PO Attainment'!P53*'PO Attainment'!$AI$19 -> 10 | F34: 34.8
A35: ='PO Attainment'!A54 -> 26 | B35: ='PO Attainment'!B54 -> 1GV19EC033 | C35: ='PO Attainment'!C54 -> RISHIKA R | D35: =('PO Attainment'!M54+'PO Attainment'!N54+'PO Attainment'!O54)*'PO Attainment'!$AH$19 -> 15.2 | E35: ='PO Attainment'!P54*'PO Attainment'!$AI$19 -> 10 | F35: 25.2
A36: ='PO Attainment'!A55 -> 27 | B36: ='PO Attainment'!B55 -> 1GV19EC034 | C36: ='PO Attainment'!C55 -> SAFNA FIRDOUS E K | D36: =('PO Attainment'!M55+'PO Attainment'!N55+'PO Attainment'!O55)*'PO Attainment'!$AH$19 -> 25.6 | E36: ='PO Attainment'!P55*'PO Attainment'!$AI$19 -> 10 | F36: 35.6
A37: ='PO Attainment'!A56 -> 28 | B37: ='PO Attainment'!B56 -> 1GV19EC035 | C37: ='PO Attainment'!C56 -> SAHANA K | D37: =('PO Attainment'!M56+'PO Attainment'!N56+'PO Attainment'!O56)*'PO Attainment'!$AH$19 -> 0 | E37: ='PO Attainment'!P56*'PO Attainment'!$AI$19 -> 10 | F37: 10
A38: ='PO Attainment'!A57 -> 29 | B38: ='PO Attainment'!B57 -> 1GV19EC036 | C38: ='PO Attainment'!C57 -> SAIMANIMALA S | D38: =('PO Attainment'!M57+'PO Attainment'!N57+'PO Attainment'!O57)*'PO Attainment'!$AH$19 -> 34.4 | E38: ='PO Attainment'!P57*'PO Attainment'!$AI$19 -> 10 | F38: 44.4
A39: ='PO Attainment'!A58 -> 30 | B39: ='PO Attainment'!B58 -> 1GV19EC037 | C39: ='PO Attainment'!C58 -> SAKTHI RAGAVAN | D39: =('PO Attainment'!M58+'PO Attainment'!N58+'PO Attainment'!O58)*'PO Attainment'!$AH$19 -> 32 | E39: ='PO Attainment'!P58*'PO Attainment'!$AI$19 -> 10 | F39: 42
A40: ='PO Attainment'!A59 -> 31 | B40: ='PO Attainment'!B59 -> 1GV19EC039 | C40: ='PO Attainment'!C59 -> SHARMILA A | D40: =('PO Attainment'!M59+'PO Attainment'!N59+'PO Attainment'!O59)*'PO Attainment'!$AH$19 -> 33.6 | E40: ='PO Attainment'!P59*'PO Attainment'!$AI$19 -> 10 | F40: 43.6
A41: ='PO Attainment'!A60 -> 32 | B41: ='PO Attainment'!B60 -> 1GV19EC040 | C41: ='PO Attainment'!C60 -> SHYAM KUMAR P | D41: =('PO Attainment'!M60+'PO Attainment'!N60+'PO Attainment'!O60)*'PO Attainment'!$AH$19 -> 16.8 | E41: ='PO Attainment'!P60*'PO Attainment'!$AI$19 -> 10 | F41: 26.8
A42: ='PO Attainment'!A61 -> 33 | B42: ='PO Attainment'!B61 -> 1GV19EC041 | C42: ='PO Attainment'!C61 -> SNEHA N | D42: =('PO Attainment'!M61+'PO Attainment'!N61+'PO Attainment'!O61)*'PO Attainment'!$AH$19 -> 8 | E42: ='PO Attainment'!P61*'PO Attainment'!$AI$19 -> 10 | F42: 18
A43: ='PO Attainment'!A62 -> 34 | B43: ='PO Attainment'!B62 -> 1GV19EC042 | C43: ='PO Attainment'!C62 -> SNEHA S | D43: =('PO Attainment'!M62+'PO Attainment'!N62+'PO Attainment'!O62)*'PO Attainment'!$AH$19 -> 12 | E43: ='PO Attainment'!P62*'PO Attainment'!$AI$19 -> 10 | F43: 22
A44: ='PO Attainment'!A63 -> 35 | B44: ='PO Attainment'!B63 -> 1GV19EC043 | C44: ='PO Attainment'!C63 -> SOUJANYA D | D44: =('PO Attainment'!M63+'PO Attainment'!N63+'PO Attainment'!O63)*'PO Attainment'!$AH$19 -> 34.4 | E44: ='PO Attainment'!P63*'PO Attainment'!$AI$19 -> 10 | F44: 44.4
A45: ='PO Attainment'!A64 -> 36 | B45: ='PO Attainment'!B64 -> 1GV19EC044 | C45: ='PO Attainment'!C64 -> SOWMIYA J | D45: =('PO Attainment'!M64+'PO Attainment'!N64+'PO Attainment'!O64)*'PO Attainment'!$AH$19 -> 37.6 | E45: ='PO Attainment'!P64*'PO Attainment'!$AI$19 -> 10 | F45: 47.6
A46: ='PO Attainment'!A65 -> 37 | B46: ='PO Attainment'!B65 -> 1GV19EC045 | C46: ='PO Attainment'!C65 -> SUJITHA S | D46: =('PO Attainment'!M65+'PO Attainment'!N65+'PO Attainment'!O65)*'PO Attainment'!$AH$19 -> 35.2 | E46: ='PO Attainment'!P65*'PO Attainment'!$AI$19 -> 10 | F46: 45.2
A47: ='PO Attainment'!A66 -> 38 | B47: ='PO Attainment'!B66 -> 1GV19EC046 | C47: ='PO Attainment'!C66 -> SUMITH R | D47: =('PO Attainment'!M66+'PO Attainment'!N66+'PO Attainment'!O66)*'PO Attainment'!$AH$19 -> 18.4 | E47: ='PO Attainment'!P66*'PO Attainment'!$AI$19 -> 10 | F47: 28.4
A48: ='PO Attainment'!A67 -> 39 | B48: ='PO Attainment'!B67 -> 1GV19EC047 | C48: ='PO Attainment'!C67 -> SURYA H G | D48: =('PO Attainment'!M67+'PO Attainment'!N67+'PO Attainment'!O67)*'PO Attainment'!$AH$19 -> 12 | E48: ='PO Attainment'!P67*'PO Attainment'!$AI$19 -> 10 | F48: 22
A49: ='PO Attainment'!A68 -> 40 | B49: ='PO Attainment'!B68 -> 1GV19EC048 | C49: ='PO Attainment'!C68 -> SWETHA T | D49: =('PO Attainment'!M68+'PO Attainment'!N68+'PO Attainment'!O68)*'PO Attainment'!$AH$19 -> 16 | E49: ='PO Attainment'!P68*'PO Attainment'!$AI$19 -> 10 | F49: 26
A50: ='PO Attainment'!A69 -> 41 | B50: ='PO Attainment'!B69 -> 1GV19EC049 | C50: ='PO Attainment'!C69 -> SYED ASHWAQ AHMED M | D50: =('PO Attainment'!M69+'PO Attainment'!N69+'PO Attainment'!O69)*'PO Attainment'!$AH$19 -> 26.4 | E50: ='PO Attainment'!P69*'PO Attainment'!$AI$19 -> 10 | F50: 36.4
A51: ='PO Attainment'!A70 -> 42 | B51: ='PO Attainment'!B70 -> 1GV19EC050 | C51: ='PO Attainment'!C70 -> TRIBHUVAN S R | D51: =('PO Attainment'!M70+'PO Attainment'!N70+'PO Attainment'!O70)*'PO Attainment'!$AH$19 -> 17.6 | E51: ='PO Attainment'!P70*'PO Attainment'!$AI$19 -> 10 | F51: 27.6
A52: ='PO Attainment'!A71 -> 43 | B52: ='PO Attainment'!B71 -> 1GV19EC051 | C52: ='PO Attainment'!C71 -> VANDANA K | D52: =('PO Attainment'!M71+'PO Attainment'!N71+'PO Attainment'!O71)*'PO Attainment'!$AH$19 -> 16.8 | E52: ='PO Attainment'!P71*'PO Attainment'!$AI$19 -> 10 | F52: 26.8
A53: ='PO Attainment'!A72 -> 44 | B53: ='PO Attainment'!B72 -> 1GV19EC052 | C53: ='PO Attainment'!C72 -> VARADARAJU D | D53: =('PO Attainment'!M72+'PO Attainment'!N72+'PO Attainment'!O72)*'PO Attainment'!$AH$19 -> 22.4 | E53: ='PO Attainment'!P72*'PO Attainment'!$AI$19 -> 10 | F53: 32.4
A54: ='PO Attainment'!A73 -> 45 | B54: ='PO Attainment'!B73 -> 1GV19EC053 | C54: ='PO Attainment'!C73 -> VIDHYA G N | D54: =('PO Attainment'!M73+'PO Attainment'!N73+'PO Attainment'!O73)*'PO Attainment'!$AH$19 -> 29.6 | E54: ='PO Attainment'!P73*'PO Attainment'!$AI$19 -> 10 | F54: 39.6
A55: ='PO Attainment'!A74 -> 46 | B55: ='PO Attainment'!B74 -> 1GV19EC054 | C55: ='PO Attainment'!C74 -> VIDYA M | D55: =('PO Attainment'!M74+'PO Attainment'!N74+'PO Attainment'!O74)*'PO Attainment'!$AH$19 -> 8 | E55: ='PO Attainment'!P74*'PO Attainment'!$AI$19 -> 10 | F55: 18
A56: ='PO Attainment'!A75 -> 47 | B56: ='PO Attainment'!B75 -> 1GV19EC057 | C56: ='PO Attainment'!C75 -> GRITA A | D56: =('PO Attainment'!M75+'PO Attainment'!N75+'PO Attainment'!O75)*'PO Attainment'!$AH$19 -> 39.2 | E56: ='PO Attainment'!P75*'PO Attainment'!$AI$19 -> 10 | F56: 49.2
A57: ='PO Attainment'!A76 -> 48 | B57: ='PO Attainment'!B76 -> 1GV19EC058 | C57: ='PO Attainment'!C76 -> TABREZ AHMED N | D57: =('PO Attainment'!M76+'PO Attainment'!N76+'PO Attainment'!O76)*'PO Attainment'!$AH$19 -> 25.6 | E57: ='PO Attainment'!P76*'PO Attainment'!$AI$19 -> 10 | F57: 35.6
A58: ='PO Attainment'!A77 -> 49 | B58: ='PO Attainment'!B77 -> 1GV18EC012 | C58: ='PO Attainment'!C77 -> KENNETH BENNY J | D58: =('PO Attainment'!M77+'PO Attainment'!N77+'PO Attainment'!O77)*'PO Attainment'!$AH$19 -> 11.2 | E58: ='PO Attainment'!P77*'PO Attainment'!$AI$19 -> 10 | F58: 21.2
A59: ='PO Attainment'!A78 -> 50 | B59: ='PO Attainment'!B78 -> 1GV18EC013 | C59: ='PO Attainment'!C78 -> KEZIA R | D59: =('PO Attainment'!M78+'PO Attainment'!N78+'PO Attainment'!O78)*'PO Attainment'!$AH$19 -> 15.2 | E59: ='PO Attainment'!P78*'PO Attainment'!$AI$19 -> 10 | F59: 25.2
A60: ='PO Attainment'!A79 -> 51 | B60: ='PO Attainment'!B79 -> 1GV18EC022 | C60: ='PO Attainment'!C79 -> PAVITHRA. P | D60: =('PO Attainment'!M79+'PO Attainment'!N79+'PO Attainment'!O79)*'PO Attainment'!$AH$19 -> 33.6 | E60: ='PO Attainment'!P79*'PO Attainment'!$AI$19 -> 10 | F60: 43.6
A61: ='PO Attainment'!A80 -> 52 | B61: ='PO Attainment'!B80 -> 1GV18EC033 | C61: ='PO Attainment'!C80 -> SHREEJA R | D61: =('PO Attainment'!M80+'PO Attainment'!N80+'PO Attainment'!O80)*'PO Attainment'!$AH$19 -> 12.8 | E61: ='PO Attainment'!P80*'PO Attainment'!$AI$19 -> 10 | F61: 22.8
A62: ='PO Attainment'!A81 -> 53 | B62: ='PO Attainment'!B81 -> 1GV18EC035 | C62: ='PO Attainment'!C81 -> SIDDHITHA S | D62: =('PO Attainment'!M81+'PO Attainment'!N81+'PO Attainment'!O81)*'PO Attainment'!$AH$19 -> 7.2 | E62: ='PO Attainment'!P81*'PO Attainment'!$AI$19 -> 10 | F62: 17.2
A63: ='PO Attainment'!A82 -> 54 | B63: ='PO Attainment'!B82 -> 1GV17EC047 | C63: ='PO Attainment'!C82 -> TEJESASHWSI ONGOLE Y | D63: =('PO Attainment'!M82+'PO Attainment'!N82+'PO Attainment'!O82)*'PO Attainment'!$AH$19 -> 0 | E63: ='PO Attainment'!P82*'PO Attainment'!$AI$19 -> 10 | F63: 10
A64: ='PO Attainment'!A83 -> 55 | B64: ='PO Attainment'!B83 -> 1GV16EC038 | C64: ='PO Attainment'!C83 -> RACHANA K R | D64: =('PO Attainment'!M83+'PO Attainment'!N83+'PO Attainment'!O83)*'PO Attainment'!$AH$19 -> 0 | E64: ='PO Attainment'!P83*'PO Attainment'!$AI$19 -> 10 | F64: 10
A65: ='PO Attainment'!A84 -> 56 | B65: ='PO Attainment'!B84 -> 1GV20EC400 | C65: ='PO Attainment'!C84 -> ARUN KUMAR N | D65: =('PO Attainment'!M84+'PO Attainment'!N84+'PO Attainment'!O84)*'PO Attainment'!$AH$19 -> 0 | E65: ='PO Attainment'!P84*'PO Attainment'!$AI$19 -> 10 | F65: 10
A66: ='PO Attainment'!A85 -> 57 | B66: ='PO Attainment'!B85 -> 1GV20EC401 | C66: ='PO Attainment'!C85 -> BHUVANESH KUMAR U | D66: =('PO Attainment'!M85+'PO Attainment'!N85+'PO Attainment'!O85)*'PO Attainment'!$AH$19 -> 0 | E66: ='PO Attainment'!P85*'PO Attainment'!$AI$19 -> 10 | F66: 10
A67: ='PO Attainment'!A86 -> 58 | B67: ='PO Attainment'!B86 -> 1GV20EC402 | C67: ='PO Attainment'!C86 -> CHANDRALEKHA M | D67: =('PO Attainment'!M86+'PO Attainment'!N86+'PO Attainment'!O86)*'PO Attainment'!$AH$19 -> 23.2 | E67: ='PO Attainment'!P86*'PO Attainment'!$AI$19 -> 10 | F67: 33.2
A68: ='PO Attainment'!A87 -> 59 | B68: ='PO Attainment'!B87 -> 1GV20EC404 | C68: ='PO Attainment'!C87 -> VEDASHREE GM | D68: =('PO Attainment'!M87+'PO Attainment'!N87+'PO Attainment'!O87)*'PO Attainment'!$AH$19 -> 18.4 | E68: ='PO Attainment'!P87*'PO Attainment'!$AI$19 -> 10 | F68: 28.4
A69: ='PO Attainment'!A88 -> 60 | B69: ='PO Attainment'!B88 -> 1GV20EC405 | C69: ='PO Attainment'!C88 -> VIJAYKUMAR R | D69: =('PO Attainment'!M88+'PO Attainment'!N88+'PO Attainment'!O88)*'PO Attainment'!$AH$19 -> 16.8 | E69: ='PO Attainment'!P88*'PO Attainment'!$AI$19 -> 10 | F69: 26.8
A71: Course Instructor

Sheet T3A
A4: F.No:DrTTIT/IQAC/2020-21/066AP
A5: ="Department of " &'PO Attainment'!C6 &" Engineering" -> Department of Electronics & Communication Engineering
A6: Internal Examination Result Analysis
A7: Third Internal Test
C8: Date:
A9: Semester: | B9: ='PO Attainment'!C5 -> IV | C9: Academic Year: | D9: ='PO Attainment'!C8 -> 2020-21
A10: Course: | B10: ='PO Attainment'!C7 -> SIGNALS AND SYSTEMS | C10: Course Code: | D10: ='PO Attainment'!S7 -> 18EC45
A12: Sl.No
A14: 1 | B14: Total No. of Students: | C14: ='PO Attainment'!S8 -> 60
A15: 2 | B15: No. of Students Absent:
A16: 3 | B16: No. of Students Appeared: | C16: ='PO Attainment'!S8-C15 -> 60
A17: 4 | B17: No. of Students Passed: | C17: ='T3'!J3 -> 53
A18: 5 | B18: No. of Students Failed: | C18: =C14-C17 -> 7
A19: 6 | B19: Percentage of Pass
A20: Based on Total Students: : | C20: =(C17/C14)*100 -> 88.33333333
A21: Based on Students Appeared: | C21: =(C17/C16)*100 -> 88.33333333
B23: Result Analysis
B24: Description | C24: Below 40% | D24: Above 75%
B26: No. of Students | C26: =C18 -> 7 | D26: ='T3'!K3 -> 31
A30: Course Instructor HOD
A46: ="Department of " &'PO Attainment'!C6 &" Engineering" -> Department of Electronics & Communication Engineering
A47: Internal Examination Result Analysis
A48: Third Internal Test
C49: Date:
A50: Semester: | B50: =B9 -> IV | C50: Academic Year: | D50: =D9 -> 2020-21
A51: Course: | B51: =B10 -> SIGNALS AND SYSTEMS | C51: Course Code: | D51: =D10 -> 18EC45
A54: No. of Students | B54: No.of students failed | C54: No.of students passed | D54: No.of students scored above 75%
A56: =C14 -> 60 | B56: =C18 -> 7 | C56: =C17 -> 53 | D56: =D26 -> 31

Sheet CAR3
A4: F.No: DrTTIT/IQAC/2020-21/066BP
A8: ="Department of " &'PO Attainment'!C6 &" Engineering" -> Department of Electronics & Communication Engineering
A10: Third Internal Test
A11: Corrective Action Report
A13: Semester: | C13: ='PO Attainment'!C5 -> IV | F13: Academic Year: | H13: ='PO Attainment'!C8 -> 2020-21
A14: Course: | C14: ='PO Attainment'!C7 -> SIGNALS AND SYSTEMS | F14: Course Code: | H14: ='PO Attainment'!S7 -> 18EC45
A16: Sl.No. | B16: Range of unit test marks % | D16: No of Students | E16: Actions taken to improve the performance | H16: Remarks
A17: 1 | B17: Below 40% | D17: ='T3A '!C26 -> 7
A18: 2 | B18: >75% | D18: ='T3A '!D26 -> 31
A22: Course Instructor | D22: HOD

Sheet FA
I3: ='PO Attainment'!S8 -> 60
A4: F.No-DrTTIT/IQAC/2020-21/IA/02P
A5: ="Department of " &'PO Attainment'!C6 &" Engineering" -> Department of Electronics & Communication Engineering
A6: Academic Year 2020-21
A7: Average IA Marks
A8: Sem :
A9: Sl.No | B9: USN | C9: Name of the Student | D9: IA1 marks | E9: IA2 marks | F9: IA3 marks | G9: Average Internal Marks
A10: ='PO Attainment'!A29 -> 1 | B10: ='PO Attainment'!B29 -> 1GV19EC002 | C10: ='PO Attainment'!C29 -> AKSHAYA K A | D10: ='T1'!F10 -> 44.4 | E10: ='T2'!F10 -> 43.6 | F10: ='T3'!F10 -> 37.2 | G10: =(D10+E10+F10)/3 -> 41.73333333
A11: ='PO Attainment'!A30 -> 2 | B11: ='PO Attainment'!B30 -> 1GV19EC003 | C11: ='PO Attainment'!C30 -> AVINASH BABU B | D11: ='T1'!F11 -> 38.8 | E11: ='T2'!F11 -> 38 | F11: ='T3'!F11 -> 16.4 | G11: =(D11+E11+F11)/3 -> 31.06666667
A12: ='PO Attainment'!A31 -> 3 | B12: ='PO Attainment'!B31 -> 1GV19EC005 | C12: ='PO Attainment'!C31 -> BHARATH KUMAR R | D12: ='T1'!F12 -> 34 | E12: ='T2'!F12 -> 32.4 | F12: ='T3'!F12 -> 14.8 | G12: 27.06666667
A13: ='PO Attainment'!A32 -> 4 | B13: ='PO Attainment'!B32 -> 1GV19EC006 | C13: ='PO Attainment'!C32 -> BHARGAVI S | D13: ='T1'!F13 -> 45.2 | E13: ='T2'!F13 -> 45.2 | F13: ='T3'!F13 -> 46 | G13: 45.46666667
A14: ='PO Attainment'!A33 -> 5 | B14: ='PO Attainment'!B33 -> 1GV19EC007 | C14: ='PO Attainment'!C33 -> CHAITHANYA K K V | D14: ='T1'!F14 -> 38.8 | E14: ='T2'!F14 -> 43.6 | F14: ='T3'!F14 -> 19.6 | G14: 34
A15: ='PO Attainment'!A34 -> 6 | B15: ='PO Attainment'!B34 -> 1GV19EC008 | C15: ='PO Attainment'!C34 -> DEEPAK R | D15: ='T1'!F15 -> 29.2 | E15: ='T2'!F15 -> 38 | F15: ='T3'!F15 -> 30 | G15: 32.4
A16: ='PO Attainment'!A35 -> 7 | B16: ='PO Attainment'!B35 -> 1GV19EC009 | C16: ='PO Attainment'!C35 -> DIVYA PRIYA G R | D16: ='T1'!F16 -> 42 | E16: ='T2'!F16 -> 47.6 | F16: ='T3'!F16 -> 45.2 | G16: =(D16+E16+F16)/3 -> 44.93333333
A17: ='PO Attainment'!A36 -> 8 | B17: ='PO Attainment'!B36 -> 1GV19EC010 | C17: ='PO Attainment'!C36 -> DIVYA SWETHA J | D17: ='T1'!F17 -> 46 | E17: ='T2'!F17 -> 47.6 | F17: ='T3'!F17 -> 45.2 | G17: 46.26666667
A18: ='PO Attainment'!A37 -> 9 | B18: ='PO Attainment'!B37 -> 1GV19EC011 | C18: ='PO Attainment'!C37 -> EVANGELIN P | D18: ='T1'!F18 -> 33.2 | E18: ='T2'!F18 -> 38 | F18: ='T3'!F18 -> 30 | G18: 33.73333333
A19: ='PO Attainment'!A38 -> 10 | B19: ='PO Attainment'!B38 -> 1GV19EC012 | C19: ='PO Attainment'!C38 -> FARHEEN TAJ | D19: ='T1'!F19 -> 42 | E19: ='T2'!F19 -> 43.6 | F19: ='T3'!F19 -> 46 | G19: 43.86666667
A20: ='PO Attainment'!A39 -> 11 | B20: ='PO Attainment'!B39 -> 1GV19EC014 | C20: ='PO Attainment'!C39 -> HARISHAKTHI N | D20: ='T1'!F20 -> 38.8 | E20: ='T2'!F20 -> 38 | F20: ='T3'!F20 -> 28.4 | G20: 35.06666667
A21: ='PO Attainment'!A40 -> 12 | B21: ='PO Attainment'!B40 -> 1GV19EC015 | C21: ='PO Attainment'!C40 -> JAISHNAVI U | D21: ='T1'!F21 -> 37.2 | E21: ='T2'!F21 -> 38 | F21: ='T3'!F21 -> 35.6 | G21: 36.93333333
A22: ='PO Attainment'!A41 -> 13 | B22: ='PO Attainment'!B41 -> 1GV19EC017 | C22: ='PO Attainment'!C41 -> KANISHA R | D22: ='T1'!F22 -> 38.8 | E22: ='T2'!F22 -> 42 | F22: ='T3'!F22 -> 44.4 | G22: 41.73333333
A23: ='PO Attainment'!A42 -> 14 | B23: ='PO Attainment'!B42 -> 1GV19EC018 | C23: ='PO Attainment'!C42 -> KAVYA RAJ | D23: ='T1'!F23 -> 38.8 | E23: ='T2'!F23 -> 42 | F23: ='T3'!F23 -> 37.2 | G23: 39.33333333
A24: ='PO Attainment'!A43 -> 15 | B24: ='PO Attainment'!B43 -> 1GV19EC019 | C24: ='PO Attainment'!C43 -> KEERTHANA B S | D24: ='T1'!F24 -> 35.6 | E24: ='T2'!F24 -> 42 | F24: ='T3'!F24 -> 35.6 | G24: 37.73333333
A25: ='PO Attainment'!A44 -> 16 | B25: ='PO Attainment'!B44 -> 1GV19EC020 | C25: ='PO Attainment'!C44 -> KRITHIKA A | D25: ='T1'!F25 -> 32.4 | E25: ='T2'!F25 -> 34 | F25: ='T3'!F25 -> 22.8 | G25: 29.73333333
A26: ='PO Attainment'!A45 -> 17 | B26: ='PO Attainment'!B45 -> 1GV19EC021 | C26: ='PO Attainment'!C45 -> LEEKATH UNNISSA A | D26: ='T1'!F26 -> 42 | E26: ='T2'!F26 -> 45.2 | F26: ='T3'!F26 -> 48.4 | G26: 45.2
A27: ='PO Attainment'!A46 -> 18 | B27: ='PO Attainment'!B46 -> 1GV19EC022 | C27: ='PO Attainment'!C46 -> MAHALAKSHMI S | D27: ='T1'!F27 -> 38.8 | E27: ='T2'!F27 -> 47.6 | F27: ='T3'!F27 -> 45.2 | G27: 43.86666667
A28: ='PO Attainment'!A47 -> 19 | B28: ='PO Attainment'!B47 -> 1GV19EC023 | C28: ='PO Attainment'!C47 -> MARY VINISHA B | D28: ='T1'!F28 -> 39.6 | E28: ='T2'!F28 -> 43.6 | F28: ='T3'!F28 -> 46 | G28: 43.06666667
A29: ='PO Attainment'!A48 -> 20 | B29: ='PO Attainment'!B48 -> 1GV19EC024 | C29: ='PO Attainment'!C48 -> MOHAMMED IRFAN | D29: ='T1'!F29 -> 43.6 | E29: ='T2'!F29 -> 43.6 | F29: ='T3'!F29 -> 37.2 | G29: 41.46666667
A30: ='PO Attainment'!A49 -> 21 | B30: ='PO Attainment'!B49 -> 1GV19EC026 | C30: ='PO Attainment'!C49 -> MOHAN C R | D30: ='T1'!F30 -> 41.2 | E30: ='T2'!F30 -> 42 | F30: ='T3'!F30 -> 10 | G30: 31.06666667
A31: ='PO Attainment'!A50 -> 22 | B31: ='PO Attainment'!B50 -> 1GV19EC027 | C31: ='PO Attainment'!C50 -> MOUNIKA V | D31: ='T1'!F31 -> 31.6 | E31: ='T2'!F31 -> 43.6 | F31: ='T3'!F31 -> 42 | G31: 39.06666667
A32: ='PO Attainment'!A51 -> 23 | B32: ='PO Attainment'!B51 -> 1GV19EC028 | C32: ='PO Attainment'!C51 -> MOUNISHA N N | D32: ='T1'!F32 -> 41.2 | E32: ='T2'!F32 -> 43.6 | F32: ='T3'!F32 -> 42.8 | G32: 42.53333333
A33: ='PO Attainment'!A52 -> 24 | B33: ='PO Attainment'!B52 -> 1GV19EC029 | C33: ='PO Attainment'!C52 -> NOMESHWAR V | D33: ='T1'!F33 -> 38.8 | E33: ='T2'!F33 -> 42 | F33: ='T3'!F33 -> 48.4 | G33: 43.06666667
A34: ='PO Attainment'!A53 -> 25 | B34: ='PO Attainment'!B53 -> 1GV19EC030 | C34: ='PO Attainment'!C53 -> POOJA G V | D34: ='T1'!F34 -> 34 | E34: ='T2'!F34 -> 42 | F34: ='T3'!F34 -> 34.8 | G34: 36.93333333
A35: ='PO Attainment'!A54 -> 26 | B35: ='PO Attainment'!B54 -> 1GV19EC033 | C35: ='PO Attainment'!C54 -> RISHIKA R | D35: ='T1'!F35 -> 10 | E35: ='T2'!F35 -> 10 | F35: ='T3'!F35 -> 25.2 | G35: 15.06666667
A36: ='PO Attainment'!A55 -> 27 | B36: ='PO Attainment'!B55 -> 1GV19EC034 | C36: ='PO Attainment'!C55 -> SAFNA FIRDOUS E K | D36: ='T1'!F36 -> 34 | E36: ='T2'!F36 -> 43.6 | F36: ='T3'!F36 -> 35.6 | G36: 37.73333333
A37: ='PO Attainment'!A56 -> 28 | B37: ='PO Attainment'!B56 -> 1GV19EC035 | C37: ='PO Attainment'!C56 -> SAHANA K | D37: ='T1'!F37 -> 30.8 | E37: ='T2'!F37 -> 45.2 | F37: ='T3'!F37 -> 10 | G37: 28.66666667
A38: ='PO Attainment'!A57 -> 29 | B38: ='PO Attainment'!B57 -> 1GV19EC036 | C38: ='PO Attainment'!C57 -> SAIMANIMALA S | D38: ='T1'!F38 -> 34 | E38: ='T2'!F38 -> 45.2 | F38: ='T3'!F38 -> 44.4 | G38: 41.2
A39: ='PO Attainment'!A58 -> 30 | B39: ='PO Attainment'!B58 -> 1GV19EC037 | C39: ='PO Attainment'!C58 -> SAKTHI RAGAVAN | D39: ='T1'!F39 -> 39.6 | E39: ='T2'!F39 -> 45.2 | F39: ='T3'!F39 -> 42 | G39: =(D39+E39+F39)/3 -> 42.26666667
A40: ='PO Attainment'!A59 -> 31 | B40: ='PO Attainment'!B59 -> 1GV19EC039 | C40: ='PO Attainment'!C59 -> SHARMILA A | D40: ='T1'!F40 -> 38 | E40: ='T2'!F40 -> 42 | F40: ='T3'!F40 -> 43.6 | G40: 41.2
A41: ='PO Attainment'!A60 -> 32 | B41: ='PO Attainment'!B60 -> 1GV19EC040 | C41: ='PO Attainment'!C60 -> SHYAM KUMAR P | D41: ='T1'!F41 -> 27.6 | E41: ='T2'!F41 -> 34 | F41: ='T3'!F41 -> 26.8 | G41: 29.46666667
A42: ='PO Attainment'!A61 -> 33 | B42: ='PO Attainment'!B61 -> 1GV19EC041 | C42: ='PO Attainment'!C61 -> SNEHA N | D42: ='T1'!F42 -> 39.6 | E42: ='T2'!F42 -> 42 | F42: ='T3'!F42 -> 18 | G42: 33.2
A43: ='PO Attainment'!A62 -> 34 | B43: ='PO Attainment'!B62 -> 1GV19EC042 | C43: ='PO Attainment'!C62 -> SNEHA S | D43: ='T1'!F43 -> 32.4 | E43: ='T2'!F43 -> 43.6 | F43: ='T3'!F43 -> 22 | G43: 32.66666667
A44: ='PO Attainment'!A63 -> 35 | B44: ='PO Attainment'!B63 -> 1GV19EC043 | C44: ='PO Attainment'!C63 -> SOUJANYA D | D44: ='T1'!F44 -> 36.4 | E44: ='T2'!F44 -> 46.8 | F44: ='T3'!F44 -> 44.4 | G44: 42.53333333
A45: ='PO Attainment'!A64 -> 36 | B45: ='PO Attainment'!B64 -> 1GV19EC044 | C45: ='PO Attainment'!C64 -> SOWMIYA J | D45: ='T1'!F45 -> 38.8 | E45: ='T2'!F45 -> 46.8 | F45: ='T3'!F45 -> 47.6 | G45: 44.4
A46: ='PO Attainment'!A65 -> 37 | B46: ='PO Attainment'!B65 -> 1GV19EC045 | C46: ='PO Attainment'!C65 -> SUJITHA S | D46: ='T1'!F46 -> 43.6 | E46: ='T2'!F46 -> 47.6 | F46: ='T3'!F46 -> 45.2 | G46: 45.46666667
A47: ='PO Attainment'!A66 -> 38 | B47: ='PO Attainment'!B66 -> 1GV19EC046 | C47: ='PO Attainment'!C66 -> SUMITH R | D47: ='T1'!F47 -> 35.6 | E47: ='T2'!F47 -> 43.6 | F47: ='T3'!F47 -> 28.4 | G47: 35.86666667
A48: ='PO Attainment'!A67 -> 39 | B48: ='PO Attainment'!B67 -> 1GV19EC047 | C48: ='PO Attainment'!C67 -> SURYA H G | D48: ='T1'!F48 -> 26.8 | E48: ='T2'!F48 -> 28.4 | F48: ='T3'!F48 -> 22 | G48: 25.73333333
A49: ='PO Attainment'!A68 -> 40 | B49: ='PO Attainment'!B68 -> 1GV19EC048 | C49: ='PO Attainment'!C68 -> SWETHA T | D49: ='T1'!F49 -> 38.8 | E49: ='T2'!F49 -> 42 | F49: ='T3'!F49 -> 26 | G49: 35.6
A50: ='PO Attainment'!A69 -> 41 | B50: ='PO Attainment'!B69 -> 1GV19EC049 | C50: ='PO Attainment'!C69 -> SYED ASHWAQ AHMED M | D50: ='T1'!F50 -> 39.6 | E50: ='T2'!F50 -> 42 | F50: ='T3'!F50 -> 36.4 | G50: 39.33333333
A51: ='PO Attainment'!A70 -> 42 | B51: ='PO Attainment'!B70 -> 1GV19EC050 | C51: ='PO Attainment'!C70 -> TRIBHUVAN S R | D51: ='T1'!F51 -> 28.4 | E51: ='T2'!F51 -> 42 | F51: ='T3'!F51 -> 27.6 | G51: 32.66666667
A52: ='PO Attainment'!A71 -> 43 | B52: ='PO Attainment'!B71 -> 1GV19EC051 | C52: ='PO Attainment'!C71 -> VANDANA K | D52: ='T1'!F52 -> 38 | E52: ='T2'!F52 -> 43.6 | F52: ='T3'!F52 -> 26.8 | G52: 36.13333333
A53: ='PO Attainment'!A72 -> 44 | B53: ='PO Attainment'!B72 -> 1GV19EC052 | C53: ='PO Attainment'!C72 -> VARADARAJU D | D53: ='T1'!F53 -> 33.2 | E53: ='T2'!F53 -> 38 | F53: ='T3'!F53 -> 32.4 | G53: 34.53333333
A54: ='PO Attainment'!A73 -> 45 | B54: ='PO Attainment'!B73 -> 1GV19EC053 | C54: ='PO Attainment'!C73 -> VIDHYA G N | D54: ='T1'!F54 -> 36.4 | E54: ='T2'!F54 -> 43.6 | F54: ='T3'!F54 -> 39.6 | G54: 39.86666667
A55: ='PO Attainment'!A74 -> 46 | B55: ='PO Attainment'!B74 -> 1GV19EC054 | C55: ='PO Attainment'!C74 -> VIDYA M | D55: ='T1'!F55 -> 34 | E55: ='T2'!F55 -> 42 | F55: ='T3'!F55 -> 18 | G55: 31.33333333
A56: ='PO Attainment'!A75 -> 47 | B56: ='PO Attainment'!B75 -> 1GV19EC057 | C56: ='PO Attainment'!C75 -> GRITA A | D56: ='T1'!F56 -> 46.8 | E56: ='T2'!F56 -> 47.6 | F56: ='T3'!F56 -> 49.2 | G56: 47.86666667
A57: ='PO Attainment'!A76 -> 48 | B57: ='PO Attainment'!B76 -> 1GV19EC058 | C57: ='PO Attainment'!C76 -> TABREZ AHMED N | D57: ='T1'!F57 -> 41.2 | E57: ='T2'!F57 -> 22 | F57: ='T3'!F57 -> 35.6 | G57: 32.93333333
A58: ='PO Attainment'!A77 -> 49 | B58: ='PO Attainment'!B77 -> 1GV18EC012 | C58: ='PO Attainment'!C77 -> KENNETH BENNY J | D58: ='T1'!F58 -> 26.8 | E58: ='T2'!F58 -> 42 | F58: ='T3'!F58 -> 21.2 | G58: 30
A59: ='PO Attainment'!A78 -> 50 | B59: ='PO Attainment'!B78 -> 1GV18EC013 | C59: ='PO Attainment'!C78 -> KEZIA R | D59: ='T1'!F59 -> 38 | E59: ='T2'!F59 -> 43.6 | F59: ='T3'!F59 -> 25.2 | G59: 35.6
A60: ='PO Attainment'!A79 -> 51 | B60: ='PO Attainment'!B79 -> 1GV18EC022 | C60: ='PO Attainment'!C79 -> PAVITHRA. P | D60: ='T1'!F60 -> 44.4 | E60: ='T2'!F60 -> 29.2 | F60: ='T3'!F60 -> 43.6 | G60: 39.06666667
A61: ='PO Attainment'!A80 -> 52 | B61: ='PO Attainment'!B80 -> 1GV18EC033 | C61: ='PO Attainment'!C80 -> SHREEJA R | D61: ='T1'!F61 -> 40.4 | E61: ='T2'!F61 -> 43.6 | F61: ='T3'!F61 -> 22.8 | G61: 35.6
A62: ='PO Attainment'!A81 -> 53 | B62: ='PO Attainment'!B81 -> 1GV18EC035 | C62: ='PO Attainment'!C81 -> SIDDHITHA S | D62: ='T1'!F62 -> 38.8 | E62: ='T2'!F62 -> 43.6 | F62: ='T3'!F62 -> 17.2 | G62: 33.2
A63: ='PO Attainment'!A82 -> 54 | B63: ='PO Attainment'!B82 -> 1GV17EC047 | C63: ='PO Attainment'!C82 -> TEJESASHWSI ONGOLE Y | D63: ='T1'!F63 -> 22 | E63: ='T2'!F63 -> 26 | F63: ='T3'!F63 -> 10 | G63: 19.33333333
A64: ='PO Attainment'!A83 -> 55 | B64: ='PO Attainment'!B83 -> 1GV16EC038 | C64: ='PO Attainment'!C83 -> RACHANA K R | D64: ='T1'!F64 -> 22 | E64: ='T2'!F64 -> 28.4 | F64: ='T3'!F64 -> 10 | G64: 20.13333333
A65: ='PO Attainment'!A84 -> 56 | B65: ='PO Attainment'!B84 -> 1GV20EC400 | C65: ='PO Attainment'!C84 -> ARUN KUMAR N | D65: ='T1'!F65 -> 10 | E65: ='T2'!F65 -> 10 | F65: ='T3'!F65 -> 10 | G65: 10
A66: ='PO Attainment'!A85 -> 57 | B66: ='PO Attainment'!B85 -> 1GV20EC401 | C66: ='PO Attainment'!C85 -> BHUVANESH KUMAR U | D66: ='T1'!F66 -> 27.6 | E66: ='T2'!F66 -> 38 | F66: ='T3'!F66 -> 10 | G66: 25.2
A67: ='PO Attainment'!A86 -> 58 | B67: ='PO Attainment'!B86 -> 1GV20EC402 | C67: ='PO Attainment'!C86 -> CHANDRALEKHA M | D67: ='T1'!F67 -> 37.2 | E67: ='T2'!F67 -> 43.6 | F67: ='T3'!F67 -> 33.2 | G67: 38
A68: ='PO Attainment'!A87 -> 59 | B68: ='PO Attainment'!B87 -> 1GV20EC404 | C68: ='PO Attainment'!C87 -> VEDASHREE GM | D68: ='T1'!F68 -> 37.2 | E68: ='T2'!F68 -> 45.2 | F68: ='T3'!F68 -> 28.4 | G68: 36.93333333
A69: ='PO Attainment'!A88 -> 60 | B69: ='PO Attainment'!B88 -> 1GV20EC405 | C69: ='PO Attainment'!C88 -> VIJAYKUMAR R | D69: ='T1'!F69 -> 30.8 | E69: ='T2'!F69 -> 34 | F69: ='T3'!F69 -> 26.8 | G69: 30.53333333
A73: Course Coordinator

Sheet Imp. Analysis
A5: F.No:DrTTIT/IQAC/2020-21/066EP
A6: ="Department of " &'PO Attainment'!C6 &" Engineering" -> Department of Electronics & Communication Engineering
A7: Impact Analysis
G8: Date:
A9: Semester: | C9: ='PO Attainment'!C5 -> IV | F9: Academic Year: | H9: ='PO Attainment'!C8 -> 2020-21
A10: Course: | C10: ='PO Attainment'!C7 -> SIGNALS AND SYSTEMS | F10: Course Code: | H10: ='PO Attainment'!S7 -> 18EC45
A11: Total No of Students in the Class:
A13: IA Test | C13: IA1 | D13: IA2 | E13: IA3 | F13: Remarks
A14: No. of Students below 40% | C14: =T1A!C18 -> 2 | D14: ='T2A '!C18 -> 2 | E14: ='T3A '!C18 -> 7
N15: IA1 | O15: =C14 -> 2
N16: IA2 | O16: =D14 -> 2
N17: IA3 | O17: =E14 -> 7
A21: Course Instructor HOD
